OrganisationNameLabel,OrganisationURI,EffectiveDate,Directorate/ServiceWhereExpenditureIncurred,ServiceCategoryLabel,ServiceCategoryURI,Supplier,SupplierRegisteredCompany Number,PaymentDate,TransactionNumber,NetAmount,IrrecoverableVAT,PurposeOfSpend,ProcurementClassification:ProclassLabel,ProcrementClassification:ProClassCode
South Lakeland District Council,http://opendatacommunities.org/id/district-council/south-lakeland,28/02/2023,Human Resources,Central Services,http://opendatacommunities.org/def/concept/finance/sercop/objective/102,LAKES TRAINING SOLUTIONS LTD,07541345,06-02-2023,0000186897,250,0,Leadership and management training for,261500,HR Training & Conferences
South Lakeland District Council,http://opendatacommunities.org/id/district-council/south-lakeland,28/02/2023,Case Management Account Mgmt,Central Services,http://opendatacommunities.org/def/concept/finance/sercop/objective/102,SHRED-IT,04047194,15-02-2023,0000187256,250.08,0,Confidential Waste Service 2022/2023,279999,ICT Not Elsewhere Classified
South Lakeland District Council,http://opendatacommunities.org/id/district-council/south-lakeland,28/02/2023,Support Services,Central Services,http://opendatacommunities.org/def/concept/finance/sercop/objective/102,Brabners LLP,,06-02-2023,0000187102,255,0,Ref-legal advice on S52 Town and,280000,Legal Services
South Lakeland District Council,http://opendatacommunities.org/id/district-council/south-lakeland,28/02/2023,Business Support Community Services,Cultural Environmental Regulatory & Planning Services,http://opendatacommunities.org/def/concept/finance/sercop/objective/104,Slicker Recycling Ltd,08652156,27-02-2023,0000187474,267,0,Filter recycling,182015,Environment Waste Mgt Waste Disposal
South Lakeland District Council,http://opendatacommunities.org/id/district-council/south-lakeland,28/02/2023,Lake Wardens,Cultural Environmental Regulatory & Planning Services,http://opendatacommunities.org/def/concept/finance/sercop/objective/104,JETTIES & MOORINGS,,13-02-2023,0000184748,273.25,0,Biannual Lift & Check of Council,291400,Arts & Leisure Services Sport & Fitness
South Lakeland District Council,http://opendatacommunities.org/id/district-council/south-lakeland,28/02/2023,Business Support Community Services,Cultural Environmental Regulatory & Planning Services,http://opendatacommunities.org/def/concept/finance/sercop/objective/104,DENNIS EAGLE LTD,03794455,15-02-2023,0000187298,279.26,0,Parts,381300,Vehicle Mgt Industrial
South Lakeland District Council,http://opendatacommunities.org/id/district-council/south-lakeland,28/02/2023,Delivery Commercial Services,External Trading Accounts,,Ulverston Properties Limited,,01-02-2023,0000186944,281.67,0,Rental fee's for room 106 Ulverston,190000,Facilities & Management Services
South Lakeland District Council,http://opendatacommunities.org/id/district-council/south-lakeland,28/02/2023,Delivery Commercial Services,External Trading Accounts,,Ulverston Properties Limited,,01-02-2023,0000186945,281.67,0,Rental fee's for room 106 Ulverston,190000,Facilities & Management Services
South Lakeland District Council,http://opendatacommunities.org/id/district-council/south-lakeland,28/02/2023,Case Management,Cultural Environmental Regulatory & Planning Services,http://opendatacommunities.org/def/concept/finance/sercop/objective/104,CONTINENTAL LANDSCAPES LTD,2108452,22-02-2023,0000186309,285.17,0,Starting from August 2022 to maintain,391310,Construction Open Spaces Construction
South Lakeland District Council,http://opendatacommunities.org/id/district-council/south-lakeland,28/02/2023,Case Management,Cultural Environmental Regulatory & Planning Services,http://opendatacommunities.org/def/concept/finance/sercop/objective/104,CONTINENTAL LANDSCAPES LTD,2108452,13-02-2023,0000187059,285.17,0,Starting from August 2022 to maintain,391310,Construction Open Spaces Construction
South Lakeland District Council,http://opendatacommunities.org/id/district-council/south-lakeland,28/02/2023,Support Services,Central Services,http://opendatacommunities.org/def/concept/finance/sercop/objective/102,CFH Docmail Ltd,01716891,08-02-2023,0000187101,289.35,0,"Ad hoc printing throughout the year,",300000,Mail Services
South Lakeland District Council,http://opendatacommunities.org/id/district-council/south-lakeland,28/02/2023,Business Support Community Services,Cultural Environmental Regulatory & Planning Services,http://opendatacommunities.org/def/concept/finance/sercop/objective/104,Harry Park Tyres Ltd,08131208,22-02-2023,0000187470,295,0,Tyres,381500,Vehicle Mgt Parts
South Lakeland District Council,http://opendatacommunities.org/id/district-council/south-lakeland,28/02/2023,Business Support Community Services,Cultural Environmental Regulatory & Planning Services,http://opendatacommunities.org/def/concept/finance/sercop/objective/104,INNOVATIVE SAFETY SYSTEMS LTD,06875015,15-02-2023,0000187297,296,0,Parts,192200,Facilities Security
South Lakeland District Council,http://opendatacommunities.org/id/district-council/south-lakeland,28/02/2023,Business Support Community Services,Cultural Environmental Regulatory & Planning Services,http://opendatacommunities.org/def/concept/finance/sercop/objective/104,CUMBRIA WASTE RECYCLING LTD,03162439,15-02-2023,0000187338,299,0,Skip emptying 2022/23,182012,Environment Waste Management Recycling
South Lakeland District Council,http://opendatacommunities.org/id/district-council/south-lakeland,28/02/2023,ICT Group,Central Services,http://opendatacommunities.org/def/concept/finance/sercop/objective/102,Vohkus,04142508,20-02-2023,0000187428,300.45,0,Poly Blackwire C3220 USB - 3200 Series,271200,ICT Hardware
South Lakeland District Council,http://opendatacommunities.org/id/district-council/south-lakeland,28/02/2023,Case Management People,Cultural Environmental Regulatory & Planning Services,http://opendatacommunities.org/def/concept/finance/sercop/objective/104,SOUTH LAKES HOUSING,IP031419,27-02-2023,0000187606,301.91,0,Town View Fields - Management Fee,191700,Facilities Property Management
South Lakeland District Council,http://opendatacommunities.org/id/district-council/south-lakeland,28/02/2023,Business Support Community Services,Cultural Environmental Regulatory & Planning Services,http://opendatacommunities.org/def/concept/finance/sercop/objective/104,Dundee Tyres Ltd T/A Tyrebin,06949335,15-02-2023,0000187291,302,0,Tyre disposal,182012,Environment Waste Management Recycling
South Lakeland District Council,http://opendatacommunities.org/id/district-council/south-lakeland,28/02/2023,Delivery Commercial Services,Central Services,http://opendatacommunities.org/def/concept/finance/sercop/objective/102,CUMBRIA WASTE RECYCLING LTD,03162439,22-02-2023,0000187273,305.85,0,South Lakeland House 1100Ltr wheeled,182012,Environment Waste Management Recycling
South Lakeland District Council,http://opendatacommunities.org/id/district-council/south-lakeland,28/02/2023,Business Support Community Services,Cultural Environmental Regulatory & Planning Services,http://opendatacommunities.org/def/concept/finance/sercop/objective/104,ALLSTAR BUSINESS SOLUTIONS LTD (NCR),2631112,01-02-2023,0000187041,307.79,0,Fuel to 31/1,381600,Vehicle Mgt Leasing
South Lakeland District Council,http://opendatacommunities.org/id/district-council/south-lakeland,28/02/2023,Business Support Community Services,Cultural Environmental Regulatory & Planning Services,http://opendatacommunities.org/def/concept/finance/sercop/objective/104,DENNIS EAGLE LTD,03794455,06-02-2023,0000186960,310.56,0,Parts,381300,Vehicle Mgt Industrial
South Lakeland District Council,http://opendatacommunities.org/id/district-council/south-lakeland,28/02/2023,Case Management Regulatory,Central Services,http://opendatacommunities.org/def/concept/finance/sercop/objective/102,CUMBRIA COUNTY COUNCIL,,13-02-2023,0000187206,312,0,LAND CHARGE SEARCH ENQUIRIES COMMONS,908000,Public Bodies Council support services
South Lakeland District Council,http://opendatacommunities.org/id/district-council/south-lakeland,28/02/2023,Case Management,Cultural Environmental Regulatory & Planning Services,http://opendatacommunities.org/def/concept/finance/sercop/objective/104,NEWSQUEST MEDIA GROUP LTD,03102566,22-02-2023,0000187437,312.12,0,Newspaper Adverts for Planning,191000,Facilities Advertising
South Lakeland District Council,http://opendatacommunities.org/id/district-council/south-lakeland,28/02/2023,Case Management,Planning and Development,,GRANTS- MISCELLANEOUS,,13-02-2023,0000187246,326.95,0,CIL - Neighbourhood Funding Portion,201700,Financial Services Grants
South Lakeland District Council,http://opendatacommunities.org/id/district-council/south-lakeland,28/02/2023,Business Support Community Services,Cultural Environmental Regulatory & Planning Services,http://opendatacommunities.org/def/concept/finance/sercop/objective/104,TAYLOR ENGINEERING & FABRICATIONS LTD,04989359,06-02-2023,0000186970,327.5,0,Parts,391200,Construction Engineering
South Lakeland District Council,http://opendatacommunities.org/id/district-council/south-lakeland,28/02/2023,Business Support Community Services,Cultural Environmental Regulatory & Planning Services,http://opendatacommunities.org/def/concept/finance/sercop/objective/104,ELIS UK LTD,00228604,06-02-2023,0000186965,331.88,0,Workwear hire 01/04/22 - 31/03/23,161000,Domestic Goods Commercial
South Lakeland District Council,http://opendatacommunities.org/id/district-council/south-lakeland,28/02/2023,Business Support Community Services,Cultural Environmental Regulatory & Planning Services,http://opendatacommunities.org/def/concept/finance/sercop/objective/104,Logistics UK,,22-02-2023,0000187511,340.5,0,Pads,361100,Public Transport Haulage
South Lakeland District Council,http://opendatacommunities.org/id/district-council/south-lakeland,28/02/2023,Support Services,Central Services,http://opendatacommunities.org/def/concept/finance/sercop/objective/102,THOMSON REUTERS (PROFESSIONAL) UK LTD,01679046,13-02-2023,0000187204,343,0,"Schofield's Election Law, release 68",202100,Financial Services Subscriptions
South Lakeland District Council,http://opendatacommunities.org/id/district-council/south-lakeland,28/02/2023,Human Resources,Central Services,http://opendatacommunities.org/def/concept/finance/sercop/objective/102,LAKES TRAINING SOLUTIONS LTD,07541345,06-02-2023,0000186897,350,0,Leadership and management training for,261500,HR Training & Conferences
South Lakeland District Council,http://opendatacommunities.org/id/district-council/south-lakeland,28/02/2023,Case Management People,Housing Services,http://opendatacommunities.org/def/concept/finance/sercop/objective/108,GAP Property Ltd,10635618,27-02-2023,0000187588,353.49,0,RIA for 13c Egerton Court,250000,Housing
South Lakeland District Council,http://opendatacommunities.org/id/district-council/south-lakeland,28/02/2023,Business Support Community Services,Cultural Environmental Regulatory & Planning Services,http://opendatacommunities.org/def/concept/finance/sercop/objective/104,WasteParts UK Ltd,,20-02-2023,0000187324,362.74,0,Parts,381500,Vehicle Mgt Parts
South Lakeland District Council,http://opendatacommunities.org/id/district-council/south-lakeland,28/02/2023,Case Management Account Mgmt,Central Services,http://opendatacommunities.org/def/concept/finance/sercop/objective/102,ALLPAY.NET LTD (NCR),6871069,01-02-2023,0000187165,371.26,0,2022-23 Internet payment/bank charges,209999,Financial Services Not Elsewhere Classif
South Lakeland District Council,http://opendatacommunities.org/id/district-council/south-lakeland,28/02/2023,Support Services,Central Services,http://opendatacommunities.org/def/concept/finance/sercop/objective/102,Browne Jacobson LLP,OC306448,13-02-2023,0000187223,376.4,0,CONT0910 - Grange Flood Defence Captial,281200,Legal Services General Support
South Lakeland District Council,http://opendatacommunities.org/id/district-council/south-lakeland,28/02/2023,Support Services,Central Services,http://opendatacommunities.org/def/concept/finance/sercop/objective/102,ROYAL MAIL GROUP PLC,,15-02-2023,0000187333,378.16,0,Response plus RUEL-SAZU-BKXR (scanning,301200,Mail Services� Postage
South Lakeland District Council,http://opendatacommunities.org/id/district-council/south-lakeland,28/02/2023,Lake Wardens,Cultural Environmental Regulatory & Planning Services,http://opendatacommunities.org/def/concept/finance/sercop/objective/104,CUMBRIA WASTE RECYCLING LTD,03162439,22-02-2023,0000187274,384.48,0,Hire & Empty of 4 x 1100L Wheeled Bins,182012,Environment Waste Management Recycling
South Lakeland District Council,http://opendatacommunities.org/id/district-council/south-lakeland,28/02/2023,Finance,Central Services,http://opendatacommunities.org/def/concept/finance/sercop/objective/102,INTEGRA USER GROUP,02999829,06-02-2023,0000187035,385,0,Integra user group annual membership,271600,ICT Software Customised & Bespoke
South Lakeland District Council,http://opendatacommunities.org/id/district-council/south-lakeland,28/02/2023,Business Support Community Services,Cultural Environmental Regulatory & Planning Services,http://opendatacommunities.org/def/concept/finance/sercop/objective/104,TAYLOR ENGINEERING & FABRICATIONS LTD,04989359,06-02-2023,0000186972,393.2,0,Parts,391200,Construction Engineering
South Lakeland District Council,http://opendatacommunities.org/id/district-council/south-lakeland,28/02/2023,Business Support Community Services,Cultural Environmental Regulatory & Planning Services,http://opendatacommunities.org/def/concept/finance/sercop/objective/104,WasteParts UK Ltd,,20-02-2023,0000187324,393.82,0,Parts,381500,Vehicle Mgt Parts
South Lakeland District Council,http://opendatacommunities.org/id/district-council/south-lakeland,28/02/2023,Case Management People,Housing Services,http://opendatacommunities.org/def/concept/finance/sercop/objective/108,Landlord,,06-02-2023,0000187002,415,0,Flat 3D ,250010,Housing Letting Agents
South Lakeland District Council,http://opendatacommunities.org/id/district-council/south-lakeland,28/02/2023,Business Support Community Services,Cultural Environmental Regulatory & Planning Services,http://opendatacommunities.org/def/concept/finance/sercop/objective/104,LANCASHIRE DAF,,15-02-2023,0000187296,425,0,Parts,381400,Vehicle Mgt Maintenance
South Lakeland District Council,http://opendatacommunities.org/id/district-council/south-lakeland,28/02/2023,Legal Governance Democracy,Central Services,http://opendatacommunities.org/def/concept/finance/sercop/objective/102,NEWSQUEST MEDIA GROUP LTD,03102566,13-02-2023,0000187217,432.74,0,Public Notice in the Westmorland,191000,Facilities Advertising
South Lakeland District Council,http://opendatacommunities.org/id/district-council/south-lakeland,28/02/2023,Kendal Town Hall,Cultural Environmental Regulatory & Planning Services,http://opendatacommunities.org/def/concept/finance/sercop/objective/104,THOMAS GRAHAM & SONS LTD,00656879,08-02-2023,0000186957,436.53,0,2 x 5 litre soft water dish washer,101400,Building General Materials
South Lakeland District Council,http://opendatacommunities.org/id/district-council/south-lakeland,28/02/2023,Westmorland Centre Parking Office,Highways & Transport Services,http://opendatacommunities.org/def/concept/finance/sercop/objective/107,Security Plus   Limited,,20-02-2023,0000187416,440,0,Bulk Cash Collection,209999,Financial Services Not Elsewhere Classif
South Lakeland District Council,http://opendatacommunities.org/id/district-council/south-lakeland,28/02/2023,Case Management People,Housing Services,http://opendatacommunities.org/def/concept/finance/sercop/objective/108,AV Storage of Lancaster Limited,,27-02-2023,0000187593,450,0,Removal of belongings from storage to,250000,Housing
South Lakeland District Council,http://opendatacommunities.org/id/district-council/south-lakeland,28/02/2023,Case Management People,Central Services,http://opendatacommunities.org/def/concept/finance/sercop/objective/102,ADECCO UK LIMITED,00593232,22-02-2023,0000187431,451.8,0,Temporary staff to support in Case,261400,HR Temporary & Agency Staff
South Lakeland District Council,http://opendatacommunities.org/id/district-council/south-lakeland,28/02/2023,Business Support Community Services,Cultural Environmental Regulatory & Planning Services,http://opendatacommunities.org/def/concept/finance/sercop/objective/104,LANCASTER TRAINING SERVICES LTD,01447612,20-02-2023,0000187285,455,0,Training,261500,HR Training & Conferences
South Lakeland District Council,http://opendatacommunities.org/id/district-council/south-lakeland,28/02/2023,Case Management,Cultural Environmental Regulatory & Planning Services,http://opendatacommunities.org/def/concept/finance/sercop/objective/104,NEWSQUEST MEDIA GROUP LTD,03102566,22-02-2023,0000187438,461.38,0,Newspaper Adverts for Planning,191000,Facilities Advertising
South Lakeland District Council,http://opendatacommunities.org/id/district-council/south-lakeland,28/02/2023,ICT Group,Central Services,http://opendatacommunities.org/def/concept/finance/sercop/objective/102,DAISY COMMUNICATIONS LTD,04145329,08-02-2023,0000187139,461.51,0,"Daisy Line Rentals, covers until 31/3/23",271700,ICT Telecommunications Fixed
South Lakeland District Council,http://opendatacommunities.org/id/district-council/south-lakeland,28/02/2023,Case Management People,Central Services,http://opendatacommunities.org/def/concept/finance/sercop/objective/102,RH Environmental Limited,,20-02-2023,0000187407,475,0,HHSRS Practitioner Training [Online],202100,Financial Services Subscriptions
South Lakeland District Council,http://opendatacommunities.org/id/district-council/south-lakeland,28/02/2023,Business Support Community Services,Cultural Environmental Regulatory & Planning Services,http://opendatacommunities.org/def/concept/finance/sercop/objective/104,LANCASHIRE DAF,,06-02-2023,0000186966,476.67,0,Parts,381400,Vehicle Mgt Maintenance
South Lakeland District Council,http://opendatacommunities.org/id/district-council/south-lakeland,28/02/2023,Human Resources,Central Services,http://opendatacommunities.org/def/concept/finance/sercop/objective/102,CUMBRIA COUNTY COUNCIL,,20-02-2023,0000186787,486,0,Enhanced DBS,908000,Public Bodies Council support services
South Lakeland District Council,http://opendatacommunities.org/id/district-council/south-lakeland,28/02/2023,Support Services,Central Services,http://opendatacommunities.org/def/concept/finance/sercop/objective/102,GRANTS- MISCELLANEOUS,,08-02-2023,0000186838,500,0,Locality contribution to Ruskins View,201700,Financial Services Grants
South Lakeland District Council,http://opendatacommunities.org/id/district-council/south-lakeland,28/02/2023,Support Services,Central Services,http://opendatacommunities.org/def/concept/finance/sercop/objective/102,GRANTS- MISCELLANEOUS,,06-02-2023,0000187012,500,0,Locality donation to help Ukraine,201700,Financial Services Grants
South Lakeland District Council,http://opendatacommunities.org/id/district-council/south-lakeland,28/02/2023,Support Services,Central Services,http://opendatacommunities.org/def/concept/finance/sercop/objective/102,GRANTS- MISCELLANEOUS,,08-02-2023,0000187056,500,0,Locality donation to support the,201700,Financial Services Grants
South Lakeland District Council,http://opendatacommunities.org/id/district-council/south-lakeland,28/02/2023,Support Services,Central Services,http://opendatacommunities.org/def/concept/finance/sercop/objective/102,STAINTON PARISH COUNCIL,,06-02-2023,0000187068,500,0,Locality donation to fund a new notice,908000,Public Bodies Council support services
South Lakeland District Council,http://opendatacommunities.org/id/district-council/south-lakeland,28/02/2023,Support Services,Central Services,http://opendatacommunities.org/def/concept/finance/sercop/objective/102,COLTON PARISH COUNCIL,,06-02-2023,0000187069,500,0,Locality donation to fund Green Sparks,908000,Public Bodies Council support services
South Lakeland District Council,http://opendatacommunities.org/id/district-council/south-lakeland,28/02/2023,Support Services,Central Services,http://opendatacommunities.org/def/concept/finance/sercop/objective/102,SEDGWICK PARISH COUNCIL,,08-02-2023,0000187133,500,0,Locality donation to fund Sedgwick Play,908000,Public Bodies Council support services
South Lakeland District Council,http://opendatacommunities.org/id/district-council/south-lakeland,28/02/2023,Support Services,Central Services,http://opendatacommunities.org/def/concept/finance/sercop/objective/102,GRANTS- MISCELLANEOUS,,08-02-2023,0000187171,500,0,Locality donation to support Clean up,201700,Financial Services Grants
South Lakeland District Council,http://opendatacommunities.org/id/district-council/south-lakeland,28/02/2023,Support Services,Central Services,http://opendatacommunities.org/def/concept/finance/sercop/objective/102,GRANTS- MISCELLANEOUS,,08-02-2023,0000187172,500,0,Locality donation to support Fiends of,201700,Financial Services Grants
South Lakeland District Council,http://opendatacommunities.org/id/district-council/south-lakeland,28/02/2023,Support Services,Central Services,http://opendatacommunities.org/def/concept/finance/sercop/objective/102,GRANTS- MISCELLANEOUS,,08-02-2023,0000187175,500,0,Lolcaity donation to support Kings Food,201700,Financial Services Grants
South Lakeland District Council,http://opendatacommunities.org/id/district-council/south-lakeland,28/02/2023,Support Services,Central Services,http://opendatacommunities.org/def/concept/finance/sercop/objective/102,GRANTS- MISCELLANEOUS,,13-02-2023,0000187197,500,0,"Locality donation to purchace tents,",201700,Financial Services Grants
South Lakeland District Council,http://opendatacommunities.org/id/district-council/south-lakeland,28/02/2023,Support Services,Central Services,http://opendatacommunities.org/def/concept/finance/sercop/objective/102,GRANTS- MISCELLANEOUS,,13-02-2023,0000187202,500,0,Locality donation to Vicarage Park,201700,Financial Services Grants
South Lakeland District Council,http://opendatacommunities.org/id/district-council/south-lakeland,28/02/2023,Support Services,Central Services,http://opendatacommunities.org/def/concept/finance/sercop/objective/102,KENDAL TOWN COUNCIL,,13-02-2023,0000187212,500,0,Locality donation to support Sports,908000,Public Bodies Council support services
South Lakeland District Council,http://opendatacommunities.org/id/district-council/south-lakeland,28/02/2023,Support Services,Central Services,http://opendatacommunities.org/def/concept/finance/sercop/objective/102,BEETHAM PARISH COUNCIL,,13-02-2023,0000187221,500,0,Locality donation to fund a memorial,908000,Public Bodies Council support services
South Lakeland District Council,http://opendatacommunities.org/id/district-council/south-lakeland,28/02/2023,Support Services,Central Services,http://opendatacommunities.org/def/concept/finance/sercop/objective/102,GRANTS- MISCELLANEOUS,,13-02-2023,0000187230,500,0,Locality donation to fund Windermere,201700,Financial Services Grants
South Lakeland District Council,http://opendatacommunities.org/id/district-council/south-lakeland,28/02/2023,Case Management People,Housing Services,http://opendatacommunities.org/def/concept/finance/sercop/objective/108,LAKELAND HOUSING TRUST,,15-02-2023,0000187264,500,0,"RIA & Bond for Flat D, Grandy Nook,",201700,Financial Services Grants
South Lakeland District Council,http://opendatacommunities.org/id/district-council/south-lakeland,28/02/2023,Support Services,Central Services,http://opendatacommunities.org/def/concept/finance/sercop/objective/102,GRANTS- MISCELLANEOUS,,15-02-2023,0000187313,500,0,Locality donation to support Save,201700,Financial Services Grants
South Lakeland District Council,http://opendatacommunities.org/id/district-council/south-lakeland,28/02/2023,Support Services,Central Services,http://opendatacommunities.org/def/concept/finance/sercop/objective/102,MILNTHORPE PARISH COUNCIL,,15-02-2023,0000187314,500,0,Locality donation to fund playing field,908000,Public Bodies Council support services
South Lakeland District Council,http://opendatacommunities.org/id/district-council/south-lakeland,28/02/2023,Support Services,Central Services,http://opendatacommunities.org/def/concept/finance/sercop/objective/102,KENTMERE PARISH MEETING,,20-02-2023,0000187382,500,0,Locality donation to support Kentmere,908000,Public Bodies Council support services
South Lakeland District Council,http://opendatacommunities.org/id/district-council/south-lakeland,28/02/2023,Support Services,Central Services,http://opendatacommunities.org/def/concept/finance/sercop/objective/102,GRANTS- MISCELLANEOUS,,20-02-2023,0000187434,500,0,Locality donation to provide food and,201700,Financial Services Grants
South Lakeland District Council,http://opendatacommunities.org/id/district-council/south-lakeland,28/02/2023,Support Services,Planning and Development,,BEVAN BRITTAN,OC309219,08-02-2023,0000187066,507,0,CONT0819 Preparation s278 Agreement,280000,Legal Services
South Lakeland District Council,http://opendatacommunities.org/id/district-council/south-lakeland,28/02/2023,Assets and Commercial Services,Central Services,http://opendatacommunities.org/def/concept/finance/sercop/objective/102,Paul Hopwood,,01-02-2023,0000186915,525,0,Cleaning of Town view Hostel due to,131310,Cleaning & Janitorial Cleaning Service
South Lakeland District Council,http://opendatacommunities.org/id/district-council/south-lakeland,28/02/2023,Case Management People,Housing Services,http://opendatacommunities.org/def/concept/finance/sercop/objective/108,Landlord,,06-02-2023,0000187005,536.98,0,Flat 3,250000,Housing
South Lakeland District Council,http://opendatacommunities.org/id/district-council/south-lakeland,28/02/2023,Human Resources,Central Services,http://opendatacommunities.org/def/concept/finance/sercop/objective/102,Dove Nest Group,,13-02-2023,0000187234,554,0,Final Fee for reverse of Level 3 Team,261520,Human Resources Training
South Lakeland District Council,http://opendatacommunities.org/id/district-council/south-lakeland,28/02/2023,Financial Services,Non-Service Payments,,Bravo Benefits Ltd,06758298,13-02-2023,0000187192,558,0,child care vouchers,202100,Financial Services Subscriptions
South Lakeland District Council,http://opendatacommunities.org/id/district-council/south-lakeland,28/02/2023,ICT Group,Central Services,http://opendatacommunities.org/def/concept/finance/sercop/objective/102,Insight Direct (Uk) Ltd,2579852,15-02-2023,0000187303,563.96,0,BenQ GW2475H - LED monitor - Full HD,271200,ICT Hardware
South Lakeland District Council,http://opendatacommunities.org/id/district-council/south-lakeland,28/02/2023,Business Support Community Services,Cultural Environmental Regulatory & Planning Services,http://opendatacommunities.org/def/concept/finance/sercop/objective/104,AUTOPARTS (CUMBRIA) LTD,02579204,06-02-2023,0000186974,564.7,0,Parts,381500,Vehicle Mgt Parts
South Lakeland District Council,http://opendatacommunities.org/id/district-council/south-lakeland,28/02/2023,Business Support Community Services,Cultural Environmental Regulatory & Planning Services,http://opendatacommunities.org/def/concept/finance/sercop/objective/104,Harry Park Tyres Ltd,08131208,06-02-2023,0000187081,582.5,0,Tyres,381500,Vehicle Mgt Parts
South Lakeland District Council,http://opendatacommunities.org/id/district-council/south-lakeland,28/02/2023,Case Management Account Mgmt,Central Services,http://opendatacommunities.org/def/concept/finance/sercop/objective/102,ADECCO UK LIMITED,00593232,13-02-2023,0000187088,583.16,0,Temporary staff to support in Case,261400,HR Temporary & Agency Staff
South Lakeland District Council,http://opendatacommunities.org/id/district-council/south-lakeland,28/02/2023,Support Services,Housing Services,http://opendatacommunities.org/def/concept/finance/sercop/objective/108,BEVAN BRITTAN,OC309219,06-02-2023,0000187115,585,0,?Kendal Almshouse Charity Grant,280000,Legal Services
South Lakeland District Council,http://opendatacommunities.org/id/district-council/south-lakeland,28/02/2023,Case Management Account Mgmt,Central Services,http://opendatacommunities.org/def/concept/finance/sercop/objective/102,ADECCO UK LIMITED,00593232,13-02-2023,0000187085,585.48,0,Temporary staff to support in Case,261400,HR Temporary & Agency Staff
South Lakeland District Council,http://opendatacommunities.org/id/district-council/south-lakeland,28/02/2023,Case Management Regulatory,Cultural Environmental Regulatory & Planning Services,http://opendatacommunities.org/def/concept/finance/sercop/objective/104,UK Health Security Agency,,20-02-2023,0000187448,588.6,0,Cockle Testing,181100,Environment Forensic & Laboratory
South Lakeland District Council,http://opendatacommunities.org/id/district-council/south-lakeland,28/02/2023,Support Services,Central Services,http://opendatacommunities.org/def/concept/finance/sercop/objective/102,Napthens Solicitors,OC325775,06-02-2023,0000187106,600,0,Priority 1 Level 2 Specialist contract,280000,Legal Services
South Lakeland District Council,http://opendatacommunities.org/id/district-council/south-lakeland,28/02/2023,Support Services,Central Services,http://opendatacommunities.org/def/concept/finance/sercop/objective/102,WEIGHTMANS LLP,OC326117,15-02-2023,0000187331,604.5,0,?Advice in relation to a request to,281300,Legal Services Legal Opinion
South Lakeland District Council,http://opendatacommunities.org/id/district-council/south-lakeland,28/02/2023,Case Management People,Housing Services,http://opendatacommunities.org/def/concept/finance/sercop/objective/108,Lakeside Taxis,,06-02-2023,0000187008,610,0,Taxis provided to Homeless clients,361600,Public Transport Taxi Services Home to S
South Lakeland District Council,http://opendatacommunities.org/id/district-council/south-lakeland,28/02/2023,Case Management Account Mgmt,Central Services,http://opendatacommunities.org/def/concept/finance/sercop/objective/102,ROYAL MAIL GROUP PLC,,08-02-2023,0000187137,628.18,0,2022-23 Royal Mail Postal Charges a/c,301200,Mail Services� Postage
South Lakeland District Council,http://opendatacommunities.org/id/district-council/south-lakeland,28/02/2023,Case Management Account Mgmt,Central Services,http://opendatacommunities.org/def/concept/finance/sercop/objective/102,ROYAL MAIL GROUP PLC,,27-02-2023,0000187463,632.17,0,2022-23 Royal Mail Postal Charges a/c,301200,Mail Services� Postage
South Lakeland District Council,http://opendatacommunities.org/id/district-council/south-lakeland,28/02/2023,Case Management,Cultural Environmental Regulatory & Planning Services,http://opendatacommunities.org/def/concept/finance/sercop/objective/104,NEWSQUEST MEDIA GROUP LTD,03102566,22-02-2023,0000186575,651.36,0,Newspaper Adverts for Planning,191000,Facilities Advertising
South Lakeland District Council,http://opendatacommunities.org/id/district-council/south-lakeland,28/02/2023,Case Management Account Mgmt,Housing Services,http://opendatacommunities.org/def/concept/finance/sercop/objective/108,Ashberry Recruitment,07202591,20-02-2023,0000187347,659,0,Agency Staff at TVF,261300,HR Recruitment & Assessment
South Lakeland District Council,http://opendatacommunities.org/id/district-council/south-lakeland,28/02/2023,Support Services,Central Services,http://opendatacommunities.org/def/concept/finance/sercop/objective/102,Browne Jacobson LLP,OC306448,08-02-2023,0000187128,660.3,0,CONT0910 - Grange Flood Defence Captial,281200,Legal Services General Support
South Lakeland District Council,http://opendatacommunities.org/id/district-council/south-lakeland,28/02/2023,Case Management Regulatory,Central Services,http://opendatacommunities.org/def/concept/finance/sercop/objective/102,The Oyster Partnership,05020374,13-02-2023,0000187073,672,0,Agency Officer - Licensing,261300,HR Recruitment & Assessment
South Lakeland District Council,http://opendatacommunities.org/id/district-council/south-lakeland,28/02/2023,Case Management Regulatory,Central Services,http://opendatacommunities.org/def/concept/finance/sercop/objective/102,The Oyster Partnership,05020374,20-02-2023,0000187219,672,0,Agency Officer - Licensing,261300,HR Recruitment & Assessment
South Lakeland District Council,http://opendatacommunities.org/id/district-council/south-lakeland,28/02/2023,Case Management Regulatory,Central Services,http://opendatacommunities.org/def/concept/finance/sercop/objective/102,The Oyster Partnership,05020374,20-02-2023,0000187391,672,0,Agency Officer - Licensing,261300,HR Recruitment & Assessment
South Lakeland District Council,http://opendatacommunities.org/id/district-council/south-lakeland,28/02/2023,Case Management Regulatory,Central Services,http://opendatacommunities.org/def/concept/finance/sercop/objective/102,The Oyster Partnership,05020374,08-02-2023,0000187072,693,0,Agency Officer - Licensing,261300,HR Recruitment & Assessment
South Lakeland District Council,http://opendatacommunities.org/id/district-council/south-lakeland,28/02/2023,Business Support Community Services,Cultural Environmental Regulatory & Planning Services,http://opendatacommunities.org/def/concept/finance/sercop/objective/104,Harry Park Tyres Ltd,08131208,06-02-2023,0000187006,700,0,Tyres,381500,Vehicle Mgt Parts
South Lakeland District Council,http://opendatacommunities.org/id/district-council/south-lakeland,28/02/2023,Case Management People,Housing Services,http://opendatacommunities.org/def/concept/finance/sercop/objective/108,SOUTH LAKES HOUSING,IP031419,27-02-2023,0000187606,700,0,Town View Fields - Management Fee,191700,Facilities Property Management
South Lakeland District Council,http://opendatacommunities.org/id/district-council/south-lakeland,28/02/2023,Case Management People,Central Services,http://opendatacommunities.org/def/concept/finance/sercop/objective/102,ADECCO UK LIMITED,00593232,13-02-2023,0000187086,707.82,0,Temporary staff to support in Case,261400,HR Temporary & Agency Staff
South Lakeland District Council,http://opendatacommunities.org/id/district-council/south-lakeland,28/02/2023,Business Support Community Services,Cultural Environmental Regulatory & Planning Services,http://opendatacommunities.org/def/concept/finance/sercop/objective/104,CUMBRIA TRUCK CENTRE LTD,04298488,06-02-2023,0000187040,707.83,0,Parts,381300,Vehicle Mgt Industrial
South Lakeland District Council,http://opendatacommunities.org/id/district-council/south-lakeland,28/02/2023,Business Support Community Services,Cultural Environmental Regulatory & Planning Services,http://opendatacommunities.org/def/concept/finance/sercop/objective/104,LAKELAND TRUCKS LTD,02464423,06-02-2023,0000187047,709.59,0,Repairs,381400,Vehicle Mgt Maintenance
South Lakeland District Council,http://opendatacommunities.org/id/district-council/south-lakeland,28/02/2023,Case Management Account Mgmt,Central Services,http://opendatacommunities.org/def/concept/finance/sercop/objective/102,ADECCO UK LIMITED,00593232,22-02-2023,0000187433,712.22,0,Temporary staff to support in Case,261400,HR Temporary & Agency Staff
South Lakeland District Council,http://opendatacommunities.org/id/district-council/south-lakeland,28/02/2023,Human Resources,Central Services,http://opendatacommunities.org/def/concept/finance/sercop/objective/102,IT Online Learning,06311471,20-02-2023,0000187430,712.5,0,Change management course x 4,261500,HR Training & Conferences
South Lakeland District Council,http://opendatacommunities.org/id/district-council/south-lakeland,28/02/2023,Support Services,Central Services,http://opendatacommunities.org/def/concept/finance/sercop/objective/102,Freeths LLP,,15-02-2023,0000187326,715.5,0,Preparation of various ICT,280000,Legal Services
South Lakeland District Council,http://opendatacommunities.org/id/district-council/south-lakeland,28/02/2023,Finance,Central Services,http://opendatacommunities.org/def/concept/finance/sercop/objective/102,Bottomline Technologies Ltd (NCR),03693514,01-02-2023,0000187127,725,0,PTX BACS subscription service and,271440,ICT Software
South Lakeland District Council,http://opendatacommunities.org/id/district-council/south-lakeland,28/02/2023,Case Management Account Mgmt,Central Services,http://opendatacommunities.org/def/concept/finance/sercop/objective/102,ADECCO UK LIMITED,00593232,20-02-2023,0000187239,726.56,0,Temporary staff to support in Case,261400,HR Temporary & Agency Staff
South Lakeland District Council,http://opendatacommunities.org/id/district-council/south-lakeland,28/02/2023,ICT Group,Central Services,http://opendatacommunities.org/def/concept/finance/sercop/objective/102,The Networking People (Northwest) LTD,,20-02-2023,0000187236,734.99,0,TVF Fortigate upgrade,270000,Information Communications Technology
South Lakeland District Council,http://opendatacommunities.org/id/district-council/south-lakeland,28/02/2023,Delivery Commercial Services,Central Services,http://opendatacommunities.org/def/concept/finance/sercop/objective/102,J S Cleaning Services,,06-02-2023,0000186976,735,0,Cleaning services at North Lonsdael Road,131010,Cleaning & Janitorial Cleaning Materials
South Lakeland District Council,http://opendatacommunities.org/id/district-council/south-lakeland,28/02/2023,Case Management Account Mgmt,Central Services,http://opendatacommunities.org/def/concept/finance/sercop/objective/102,ROYAL MAIL GROUP PLC,,06-02-2023,0000187112,740.13,0,2022-23 Royal Mail Postal Charges a/c,301200,Mail Services� Postage
South Lakeland District Council,http://opendatacommunities.org/id/district-council/south-lakeland,28/02/2023,Lake Wardens,Cultural Environmental Regulatory & Planning Services,http://opendatacommunities.org/def/concept/finance/sercop/objective/104,JETTIES & MOORINGS,,13-02-2023,0000184749,745.4,0,Biannual Lift & Check of Council,291400,Arts & Leisure Services Sport & Fitness
South Lakeland District Council,http://opendatacommunities.org/id/district-council/south-lakeland,28/02/2023,ICT Group,Central Services,http://opendatacommunities.org/def/concept/finance/sercop/objective/102,Nominet UK,,06-02-2023,0000187113,765.94,0,"Year 1 DNS services, quarterly invoice",261517,ICT-Consultancy
South Lakeland District Council,http://opendatacommunities.org/id/district-council/south-lakeland,28/02/2023,Case Management Account Mgmt,Highways & Transport Services,http://opendatacommunities.org/def/concept/finance/sercop/objective/107,METRIC GROUP LIMITED,02560839,20-02-2023,0000187398,777,0,Website hosting costs for April 2022,359999,Street & Traffic Not Elsewhere Classifie
South Lakeland District Council,http://opendatacommunities.org/id/district-council/south-lakeland,28/02/2023,Case Management Account Mgmt,Highways & Transport Services,http://opendatacommunities.org/def/concept/finance/sercop/objective/107,METRIC GROUP LIMITED,02560839,20-02-2023,0000187399,777,0,Website hosting costs for April 2022,359999,Street & Traffic Not Elsewhere Classifie
South Lakeland District Council,http://opendatacommunities.org/id/district-council/south-lakeland,28/02/2023,Case Management People,Culture and Related Serv,http://opendatacommunities.org/def/concept/finance/sercop/objective/104,CONTINENTAL LANDSCAPES LTD,2108452,27-02-2023,0000187058,800,0,Yeats Close Playground Clearance and,391310,Construction Open Spaces Construction
South Lakeland District Council,http://opendatacommunities.org/id/district-council/south-lakeland,28/02/2023,Case Management People,Central Services,http://opendatacommunities.org/def/concept/finance/sercop/objective/102,ADECCO UK LIMITED,00593232,13-02-2023,0000187087,802.53,0,Agency contract to allow DEF work to be,261400,HR Temporary & Agency Staff
South Lakeland District Council,http://opendatacommunities.org/id/district-council/south-lakeland,28/02/2023,Case Management People,Central Services,http://opendatacommunities.org/def/concept/finance/sercop/objective/102,ADECCO UK LIMITED,00593232,20-02-2023,0000187238,802.53,0,Agency contract to allow DEF work to be,261400,HR Temporary & Agency Staff
South Lakeland District Council,http://opendatacommunities.org/id/district-council/south-lakeland,28/02/2023,Case Management People,Central Services,http://opendatacommunities.org/def/concept/finance/sercop/objective/102,ADECCO UK LIMITED,00593232,22-02-2023,0000187432,802.53,0,Agency contract to allow DEF work to be,261400,HR Temporary & Agency Staff
South Lakeland District Council,http://opendatacommunities.org/id/district-council/south-lakeland,28/02/2023,Case Management Account Mgmt,Central Services,http://opendatacommunities.org/def/concept/finance/sercop/objective/102,ROYAL MAIL GROUP PLC,,13-02-2023,0000187237,812.13,0,2022-23 Royal Mail Postal Charges a/c,301200,Mail Services� Postage
South Lakeland District Council,http://opendatacommunities.org/id/district-council/south-lakeland,28/02/2023,Business Support Community Services,Cultural Environmental Regulatory & Planning Services,http://opendatacommunities.org/def/concept/finance/sercop/objective/104,BRIAN ARMISTEAD LTD T/A SINKFALL RECYCLI,04133280,27-02-2023,0000187554,817.28,0,Tipping charges 2022/23,391110,Construction Buildings Construction
South Lakeland District Council,http://opendatacommunities.org/id/district-council/south-lakeland,28/02/2023,Delivery Commercial Services,Central Services,http://opendatacommunities.org/def/concept/finance/sercop/objective/102,A Muir Surveying,,13-02-2023,0000187174,825,0,Ferry Nab Water Source Heat Pumps -,152050,Consultancy Property
South Lakeland District Council,http://opendatacommunities.org/id/district-council/south-lakeland,28/02/2023,Human Resources,Central Services,http://opendatacommunities.org/def/concept/finance/sercop/objective/102,Grad Consult,08653774,20-02-2023,0000187260,850,0,"16 Courses - Building Resilience,",261500,HR Training & Conferences
South Lakeland District Council,http://opendatacommunities.org/id/district-council/south-lakeland,28/02/2023,Human Resources,Central Services,http://opendatacommunities.org/def/concept/finance/sercop/objective/102,Grad Consult,08653774,22-02-2023,0000187458,850,0,"16 Courses - Building Resilience,",261500,HR Training & Conferences
South Lakeland District Council,http://opendatacommunities.org/id/district-council/south-lakeland,28/02/2023,Delivery Commercial Services,Cultural Environmental Regulatory & Planning Services,http://opendatacommunities.org/def/concept/finance/sercop/objective/104,SOUTH LAKES TREE SURGEONS & LANDSCAPES,05342745,06-02-2023,0000187105,860,0,"School Knott, Windermere - Fell 3 Ash",241210,Horticultural Tree Trimming
South Lakeland District Council,http://opendatacommunities.org/id/district-council/south-lakeland,28/02/2023,Support Services,Central Services,http://opendatacommunities.org/def/concept/finance/sercop/objective/102,BEVAN BRITTAN,OC309219,15-02-2023,0000187325,877.5,0,LGR employment advice,280000,Legal Services
South Lakeland District Council,http://opendatacommunities.org/id/district-council/south-lakeland,28/02/2023,Case Management People,Culture and Related Serv,http://opendatacommunities.org/def/concept/finance/sercop/objective/104,PARKLAND MACHINERY LTD,05253701,15-02-2023,0000187227,900,0,"To install a Swing Frame, Spinner Bowl,",331000,Sports Playground Equipment
South Lakeland District Council,http://opendatacommunities.org/id/district-council/south-lakeland,28/02/2023,Westmorland Centre Parking Office,Highways & Transport Services,http://opendatacommunities.org/def/concept/finance/sercop/objective/107,Security Plus   Limited,,20-02-2023,0000187417,921.41,0,Bulk Cash Collection,209999,Financial Services Not Elsewhere Classif
South Lakeland District Council,http://opendatacommunities.org/id/district-council/south-lakeland,28/02/2023,Business Support Community Services,Cultural Environmental Regulatory & Planning Services,http://opendatacommunities.org/def/concept/finance/sercop/objective/104,TAYLOR ENGINEERING & FABRICATIONS LTD,04989359,08-02-2023,0000187121,942.5,0,Parts,391200,Construction Engineering
South Lakeland District Council,http://opendatacommunities.org/id/district-council/south-lakeland,28/02/2023,Case Management,Central Services,http://opendatacommunities.org/def/concept/finance/sercop/objective/102,Vivid Resourcing,,01-02-2023,0000186947,945,0,13 week temporary Conservation Officer,150000,Consultancy
South Lakeland District Council,http://opendatacommunities.org/id/district-council/south-lakeland,28/02/2023,Case Management,Central Services,http://opendatacommunities.org/def/concept/finance/sercop/objective/102,Vivid Resourcing,,06-02-2023,0000187045,945,0,13 week temporary Conservation Officer,150000,Consultancy
South Lakeland District Council,http://opendatacommunities.org/id/district-council/south-lakeland,28/02/2023,Case Management,Central Services,http://opendatacommunities.org/def/concept/finance/sercop/objective/102,Vivid Resourcing,,13-02-2023,0000187224,945,0,13 week temporary Conservation Officer,150000,Consultancy
South Lakeland District Council,http://opendatacommunities.org/id/district-council/south-lakeland,28/02/2023,Business Support Community Services,Cultural Environmental Regulatory & Planning Services,http://opendatacommunities.org/def/concept/finance/sercop/objective/104,LANCASTER TRAINING SERVICES LTD,01447612,20-02-2023,0000187318,945,0,Training,261500,HR Training & Conferences
South Lakeland District Council,http://opendatacommunities.org/id/district-council/south-lakeland,28/02/2023,Case Management,Central Services,http://opendatacommunities.org/def/concept/finance/sercop/objective/102,Vivid Resourcing,,27-02-2023,0000187601,945,0,13 week temporary Conservation Officer,150000,Consultancy
South Lakeland District Council,http://opendatacommunities.org/id/district-council/south-lakeland,28/02/2023,Business Support Community Services,Cultural Environmental Regulatory & Planning Services,http://opendatacommunities.org/def/concept/finance/sercop/objective/104,LANCASTER TRAINING SERVICES LTD,01447612,20-02-2023,0000187317,962.5,0,Training,261500,HR Training & Conferences
South Lakeland District Council,http://opendatacommunities.org/id/district-council/south-lakeland,28/02/2023,Support Services,SLDC as Agent,,ANTHONY COLLINS SOLICITORS,OC313432,13-02-2023,0000187245,975,0,?CONT0928 - CCBL Hosting Budget -,281300,Legal Services Legal Opinion
South Lakeland District Council,http://opendatacommunities.org/id/district-council/south-lakeland,28/02/2023,Support Services,Central Services,http://opendatacommunities.org/def/concept/finance/sercop/objective/102,GRANTS- MISCELLANEOUS,,01-02-2023,0000186896,1000,0,Loclaity donation to fund woodland,201700,Financial Services Grants
South Lakeland District Council,http://opendatacommunities.org/id/district-council/south-lakeland,28/02/2023,Support Services,Central Services,http://opendatacommunities.org/def/concept/finance/sercop/objective/102,ULVERSTON TOWN COUNCIL,,06-02-2023,0000186979,1000,0,Locality donation  to funch bench,908000,Public Bodies Council support services
South Lakeland District Council,http://opendatacommunities.org/id/district-council/south-lakeland,28/02/2023,Support Services,Central Services,http://opendatacommunities.org/def/concept/finance/sercop/objective/102,GRANTS- MISCELLANEOUS,,08-02-2023,0000187130,1000,0,500 donation to fund defib pads and,201700,Financial Services Grants
South Lakeland District Council,http://opendatacommunities.org/id/district-council/south-lakeland,28/02/2023,Support Services,Central Services,http://opendatacommunities.org/def/concept/finance/sercop/objective/102,KENDAL TOWN COUNCIL,,13-02-2023,0000187196,1000,0,Locality donation to ?improve footpaths,908000,Public Bodies Council support services
South Lakeland District Council,http://opendatacommunities.org/id/district-council/south-lakeland,28/02/2023,Support Services,Central Services,http://opendatacommunities.org/def/concept/finance/sercop/objective/102,GRANTS- MISCELLANEOUS,,13-02-2023,0000187211,1000,0,Locality donation to fund Improvements,201700,Financial Services Grants
South Lakeland District Council,http://opendatacommunities.org/id/district-council/south-lakeland,28/02/2023,Support Services,Central Services,http://opendatacommunities.org/def/concept/finance/sercop/objective/102,AMBLESIDE PARISH CENTRE,07640743,13-02-2023,0000187257,1000,0,Locality donation to support  The,201700,Financial Services Grants
South Lakeland District Council,http://opendatacommunities.org/id/district-council/south-lakeland,28/02/2023,Support Services,Central Services,http://opendatacommunities.org/def/concept/finance/sercop/objective/102,GRANTS- MISCELLANEOUS,,20-02-2023,0000187362,1000,0,Locality donation to fund Coniston and,201700,Financial Services Grants
South Lakeland District Council,http://opendatacommunities.org/id/district-council/south-lakeland,28/02/2023,Support Services,Central Services,http://opendatacommunities.org/def/concept/finance/sercop/objective/102,GRANTS- MISCELLANEOUS,,20-02-2023,0000187422,1000,0,Locality donation to fund Ulverston,201700,Financial Services Grants
South Lakeland District Council,http://opendatacommunities.org/id/district-council/south-lakeland,28/02/2023,Support Services,Central Services,http://opendatacommunities.org/def/concept/finance/sercop/objective/102,GRANTS- MISCELLANEOUS,,27-02-2023,0000187595,1000,0,Locality donation to support Grasmere,201700,Financial Services Grants
South Lakeland District Council,http://opendatacommunities.org/id/district-council/south-lakeland,28/02/2023,Case Management People,Central Services,http://opendatacommunities.org/def/concept/finance/sercop/objective/102,G2 Recruitment Solutions,,06-02-2023,0000187052,1006.5,0,Payment for ,261413,HR- Temporary Staff- Professional
South Lakeland District Council,http://opendatacommunities.org/id/district-council/south-lakeland,28/02/2023,Human Resources,Central Services,http://opendatacommunities.org/def/concept/finance/sercop/objective/102,Skillset Limited,,27-02-2023,0000187607,1043.75,0,Extension to contract: Learning,261520,Human Resources Training
South Lakeland District Council,http://opendatacommunities.org/id/district-council/south-lakeland,28/02/2023,Case Management Regulatory,Central Services,http://opendatacommunities.org/def/concept/finance/sercop/objective/102,Alexandra Bradshaw,,08-02-2023,0000187071,1050,0,Contract Animal Licensing Officer,261400,HR Temporary & Agency Staff
South Lakeland District Council,http://opendatacommunities.org/id/district-council/south-lakeland,28/02/2023,Case Management Regulatory,Central Services,http://opendatacommunities.org/def/concept/finance/sercop/objective/102,Alexandra Bradshaw,,20-02-2023,0000187418,1050,0,Contract Animal Licensing Officer,261400,HR Temporary & Agency Staff
South Lakeland District Council,http://opendatacommunities.org/id/district-council/south-lakeland,28/02/2023,Case Management Regulatory,Cultural Environmental Regulatory & Planning Services,http://opendatacommunities.org/def/concept/finance/sercop/objective/104,N WESTERN INSHORE FISHERIES &,,20-02-2023,0000187427,1050,0,Cockle Sampling,111200,Catering Food & Beverages
South Lakeland District Council,http://opendatacommunities.org/id/district-council/south-lakeland,28/02/2023,Case Management Regulatory,Central Services,http://opendatacommunities.org/def/concept/finance/sercop/objective/102,Alexandra Bradshaw,,20-02-2023,0000187441,1050,0,Contract Animal Licensing Officer,261400,HR Temporary & Agency Staff
South Lakeland District Council,http://opendatacommunities.org/id/district-council/south-lakeland,28/02/2023,Support Services,Housing Services,http://opendatacommunities.org/def/concept/finance/sercop/objective/108,BEVAN BRITTAN,OC309219,15-02-2023,0000187330,1053,0,Castle and Coast Affordable Housing,280000,Legal Services
South Lakeland District Council,http://opendatacommunities.org/id/district-council/south-lakeland,28/02/2023,Case Management Regulatory,Cultural Environmental Regulatory & Planning Services,http://opendatacommunities.org/def/concept/finance/sercop/objective/104,MOGO UK,03091301,20-02-2023,0000186376,1077.9,0,HACKNEY CARRIAGE LICENCE PLATE SET,281400,Legal Services Specialist Support
South Lakeland District Council,http://opendatacommunities.org/id/district-council/south-lakeland,28/02/2023,Case Management Regulatory,Central Services,http://opendatacommunities.org/def/concept/finance/sercop/objective/102,The Oyster Partnership,05020374,20-02-2023,0000187389,1080,0,Agency Environmental Health Officer,261300,HR Recruitment & Assessment
South Lakeland District Council,http://opendatacommunities.org/id/district-council/south-lakeland,28/02/2023,Delivery Commercial Services,Planning and Development,,R G PARKINS & PARTNERS LTD,04107150,08-02-2023,0000187131,1082.5,0,16 New Shambles & 2nd Floor 28 Finkle,152200,Consultancy Technical & Feasibility
South Lakeland District Council,http://opendatacommunities.org/id/district-council/south-lakeland,28/02/2023,Business Support Community Services,Central Services,http://opendatacommunities.org/def/concept/finance/sercop/objective/102,Dawsongroup Truck & Trailer Ltd,03080279,15-02-2023,0000187286,1084.27,0,Lease of 2 x HGV sweepers from date of,381200,Vehicle Mgt Heavy Constr Equip Leasing
South Lakeland District Council,http://opendatacommunities.org/id/district-council/south-lakeland,28/02/2023,Business Support Community Services,Cultural Environmental Regulatory & Planning Services,http://opendatacommunities.org/def/concept/finance/sercop/objective/104,CUMBRIA WASTE RECYCLING LTD,03162439,20-02-2023,0000187351,1093.11,0,Skip emptying 2022/23,182012,Environment Waste Management Recycling
South Lakeland District Council,http://opendatacommunities.org/id/district-council/south-lakeland,28/02/2023,Business Support Community Services,Cultural Environmental Regulatory & Planning Services,http://opendatacommunities.org/def/concept/finance/sercop/objective/104,LANCASHIRE DAF,,13-02-2023,0000187186,1103.38,0,Parts,381400,Vehicle Mgt Maintenance
South Lakeland District Council,http://opendatacommunities.org/id/district-council/south-lakeland,28/02/2023,Delivery Commercial Services,Cultural Environmental Regulatory & Planning Services,http://opendatacommunities.org/def/concept/finance/sercop/objective/104,Bergen Arbortech,,08-02-2023,0000187138,1124,0,"Owlet Ash Field Playground,",241210,Horticultural Tree Trimming
South Lakeland District Council,http://opendatacommunities.org/id/district-council/south-lakeland,28/02/2023,Delivery Commercial Services,Culture and Related Serv,http://opendatacommunities.org/def/concept/finance/sercop/objective/104,LAKELAND ARTS,08162578,06-02-2023,0000186982,1168.68,0,Abbot Hall - Costs incurred,201700,Financial Services Grants
South Lakeland District Council,http://opendatacommunities.org/id/district-council/south-lakeland,28/02/2023,Delivery Commercial Services,Housing,http://opendatacommunities.org/def/concept/finance/sercop/objective/108,Howe Projects Ltd,,06-02-2023,0000186981,1169.38,0,Town View Fields Hostel - Refurbishment,109999,Building Not Elsewhere Classified
South Lakeland District Council,http://opendatacommunities.org/id/district-council/south-lakeland,28/02/2023,Support Services,Central Services,http://opendatacommunities.org/def/concept/finance/sercop/objective/102,Freeths LLP,,27-02-2023,0000187592,1174.5,0,Elections Management software LGR,280000,Legal Services
South Lakeland District Council,http://opendatacommunities.org/id/district-council/south-lakeland,28/02/2023,Business Support Community Services,Cultural Environmental Regulatory & Planning Services,http://opendatacommunities.org/def/concept/finance/sercop/objective/104,LANCASHIRE DAF,,06-02-2023,0000187004,1184.5,0,Parts,381400,Vehicle Mgt Maintenance
South Lakeland District Council,http://opendatacommunities.org/id/district-council/south-lakeland,28/02/2023,Case Management People,Housing Services,http://opendatacommunities.org/def/concept/finance/sercop/objective/108,Landlord,,15-02-2023,0000187341,1190,0,"Flats 1A,",202000,Financial Services Rents
South Lakeland District Council,http://opendatacommunities.org/id/district-council/south-lakeland,28/02/2023,Case Management People,Cultural Environmental Regulatory & Planning Services,http://opendatacommunities.org/def/concept/finance/sercop/objective/104,SOUTH LAKES HOUSING,IP031419,27-02-2023,0000187606,1190,0,Town View Fields - Management Fee,191700,Facilities Property Management
South Lakeland District Council,http://opendatacommunities.org/id/district-council/south-lakeland,28/02/2023,Case Management People,Cultural Environmental Regulatory & Planning Services,http://opendatacommunities.org/def/concept/finance/sercop/objective/104,SOUTH LAKES HOUSING,IP031419,27-02-2023,0000187606,1190,0,Town View Fields - Management Fee,191700,Facilities Property Management
South Lakeland District Council,http://opendatacommunities.org/id/district-council/south-lakeland,28/02/2023,Case Management Regulatory,Central Services,http://opendatacommunities.org/def/concept/finance/sercop/objective/102,The Oyster Partnership,05020374,06-02-2023,0000186993,1200,0,Agency Environmental Health Officer,261300,HR Recruitment & Assessment
South Lakeland District Council,http://opendatacommunities.org/id/district-council/south-lakeland,28/02/2023,Case Management Regulatory,Central Services,http://opendatacommunities.org/def/concept/finance/sercop/objective/102,The Oyster Partnership,05020374,06-02-2023,0000186994,1200,0,Agency Environmental Health Officer,261300,HR Recruitment & Assessment
South Lakeland District Council,http://opendatacommunities.org/id/district-council/south-lakeland,28/02/2023,Case Management Regulatory,Central Services,http://opendatacommunities.org/def/concept/finance/sercop/objective/102,The Oyster Partnership,05020374,20-02-2023,0000187387,1200,0,Agency Environmental Health Officer,261300,HR Recruitment & Assessment
South Lakeland District Council,http://opendatacommunities.org/id/district-council/south-lakeland,28/02/2023,Finance,Highways & Transport Services,http://opendatacommunities.org/def/concept/finance/sercop/objective/107,E H BOOTH & CO LTD,,13-02-2023,0000187225,1203.04,0,Booths Kirkby Lonsdale Qtr 3,111200,Catering Food & Beverages
South Lakeland District Council,http://opendatacommunities.org/id/district-council/south-lakeland,28/02/2023,Case Management Account Mgmt,Cultural Environmental Regulatory & Planning Services,http://opendatacommunities.org/def/concept/finance/sercop/objective/104,GLASDON UK LTD,02160576,06-02-2023,0000186911,1209.21,0,Grasmere Cemetery Bench - ,109999,Building Not Elsewhere Classified
South Lakeland District Council,http://opendatacommunities.org/id/district-council/south-lakeland,28/02/2023,Business Support Community Services,Cultural Environmental Regulatory & Planning Services,http://opendatacommunities.org/def/concept/finance/sercop/objective/104,Harry Park Tyres Ltd,08131208,20-02-2023,0000187354,1235,0,Tyres,381500,Vehicle Mgt Parts
South Lakeland District Council,http://opendatacommunities.org/id/district-council/south-lakeland,28/02/2023,Delivery Commercial Services,Planning and Development,,Castle Design Services,,20-02-2023,0000187444,1250,0,16 New Shambles & 2nd Floor 28 Finkle,190000,Facilities & Management Services
South Lakeland District Council,http://opendatacommunities.org/id/district-council/south-lakeland,28/02/2023,Business Support Community Services,Cultural Environmental Regulatory & Planning Services,http://opendatacommunities.org/def/concept/finance/sercop/objective/104,Verizon Connect UK Ltd,05265904,06-02-2023,0000187038,1269,0,Tracking system,361000,Public Transport Fleet Management
South Lakeland District Council,http://opendatacommunities.org/id/district-council/south-lakeland,28/02/2023,Case Management Regulatory,Central Services,http://opendatacommunities.org/def/concept/finance/sercop/objective/102,Macdonald & Company Freelance Ltd,03882135,20-02-2023,0000187376,1287.25,0,Contract Worker,261400,HR Temporary & Agency Staff
South Lakeland District Council,http://opendatacommunities.org/id/district-council/south-lakeland,28/02/2023,Case Management People,Housing Services,http://opendatacommunities.org/def/concept/finance/sercop/objective/108,Ross Rheinbach,,15-02-2023,0000187310,1300,0,TA for February,250000,Housing
South Lakeland District Council,http://opendatacommunities.org/id/district-council/south-lakeland,28/02/2023,Westmorland Centre Parking Office,Highways & Transport Services,http://opendatacommunities.org/def/concept/finance/sercop/objective/107,Security Plus   Limited,,20-02-2023,0000187415,1319.46,0,Bulk Cash Collection,209999,Financial Services Not Elsewhere Classif
South Lakeland District Council,http://opendatacommunities.org/id/district-council/south-lakeland,28/02/2023,Case Management Regulatory,Central Services,http://opendatacommunities.org/def/concept/finance/sercop/objective/102,The Oyster Partnership,05020374,06-02-2023,0000186996,1332,0,Agency Officer - Licensing wef 4 April,261300,HR Recruitment & Assessment
South Lakeland District Council,http://opendatacommunities.org/id/district-council/south-lakeland,28/02/2023,Case Management Regulatory,Central Services,http://opendatacommunities.org/def/concept/finance/sercop/objective/102,The Oyster Partnership,05020374,20-02-2023,0000187220,1332,0,Agency Officer - Licensing wef 4 April,261300,HR Recruitment & Assessment
South Lakeland District Council,http://opendatacommunities.org/id/district-council/south-lakeland,28/02/2023,Case Management Regulatory,Central Services,http://opendatacommunities.org/def/concept/finance/sercop/objective/102,The Oyster Partnership,05020374,20-02-2023,0000187388,1332,0,Agency Officer - Licensing wef 4 April,261300,HR Recruitment & Assessment
South Lakeland District Council,http://opendatacommunities.org/id/district-council/south-lakeland,28/02/2023,Business Support Community Services,Cultural Environmental Regulatory & Planning Services,http://opendatacommunities.org/def/concept/finance/sercop/objective/104,METCALFE BROS LTD,05899629,01-02-2023,0000186908,1354.5,0,Sweeper hire - 31/03/23,381200,Vehicle Mgt Heavy Constr Equip Leasing
South Lakeland District Council,http://opendatacommunities.org/id/district-council/south-lakeland,28/02/2023,Support Services,Central Services,http://opendatacommunities.org/def/concept/finance/sercop/objective/102,Browne Jacobson LLP,OC306448,13-02-2023,0000187198,1359.4,0,subsidy control advice on Coronation,281200,Legal Services General Support
South Lakeland District Council,http://opendatacommunities.org/id/district-council/south-lakeland,28/02/2023,Delivery Commercial Services,Cultural Environmental Regulatory & Planning Services,http://opendatacommunities.org/def/concept/finance/sercop/objective/104,Bergen Arbortech,,15-02-2023,0000187281,1380,0,"Thorny Hills, Kendal - Crown Clean 7",241210,Horticultural Tree Trimming
South Lakeland District Council,http://opendatacommunities.org/id/district-council/south-lakeland,28/02/2023,Business Support Community Services,Cultural Environmental Regulatory & Planning Services,http://opendatacommunities.org/def/concept/finance/sercop/objective/104,Harry Park Tyres Ltd,08131208,06-02-2023,0000187080,1400,0,Tyres,381500,Vehicle Mgt Parts
South Lakeland District Council,http://opendatacommunities.org/id/district-council/south-lakeland,28/02/2023,Case Management People,Housing Services,http://opendatacommunities.org/def/concept/finance/sercop/objective/108,James Andrews Recruitment Solutions,06834852,13-02-2023,0000187208,1413.12,0,Payment for ,261400,HR Temporary & Agency Staff
South Lakeland District Council,http://opendatacommunities.org/id/district-council/south-lakeland,28/02/2023,Lake Wardens,Cultural Environmental Regulatory & Planning Services,http://opendatacommunities.org/def/concept/finance/sercop/objective/104,Ebsford Environmental Ltd,,06-02-2023,0000187046,1439.35,0,Ferry Nab Marina Dredging,390000,Construction
South Lakeland District Council,http://opendatacommunities.org/id/district-council/south-lakeland,28/02/2023,Delivery Commercial Services,Housing,http://opendatacommunities.org/def/concept/finance/sercop/objective/108,R G PARKINS & PARTNERS LTD,04107150,15-02-2023,0000187308,1450,0,Town View Fields - Professional,152200,Consultancy Technical & Feasibility
South Lakeland District Council,http://opendatacommunities.org/id/district-council/south-lakeland,28/02/2023,Case Management Regulatory,Central Services,http://opendatacommunities.org/def/concept/finance/sercop/objective/102,Macdonald & Company Freelance Ltd,03882135,06-02-2023,0000186986,1472.5,0,Contract Worker,261400,HR Temporary & Agency Staff
South Lakeland District Council,http://opendatacommunities.org/id/district-council/south-lakeland,28/02/2023,Case Management Regulatory,Central Services,http://opendatacommunities.org/def/concept/finance/sercop/objective/102,G2 Recruitment Solutions,,06-02-2023,0000187055,1480,0,David Gibson - Agency Staff,261413,HR- Temporary Staff- Professional
South Lakeland District Council,http://opendatacommunities.org/id/district-council/south-lakeland,28/02/2023,Case Management Regulatory,Central Services,http://opendatacommunities.org/def/concept/finance/sercop/objective/102,G2 Recruitment Solutions,,13-02-2023,0000187233,1480,0,David Gibson - Agency Staff,261413,HR- Temporary Staff- Professional
South Lakeland District Council,http://opendatacommunities.org/id/district-council/south-lakeland,28/02/2023,Case Management Regulatory,Central Services,http://opendatacommunities.org/def/concept/finance/sercop/objective/102,G2 Recruitment Solutions,,20-02-2023,0000187423,1480,0,David Gibson - Agency Staff,261413,HR- Temporary Staff- Professional
South Lakeland District Council,http://opendatacommunities.org/id/district-council/south-lakeland,28/02/2023,Business Support Community Services,Cultural Environmental Regulatory & Planning Services,http://opendatacommunities.org/def/concept/finance/sercop/objective/104,LANCASTER TRAINING SERVICES LTD,01447612,27-02-2023,0000187473,1487.5,0,Training,261500,HR Training & Conferences
South Lakeland District Council,http://opendatacommunities.org/id/district-council/south-lakeland,28/02/2023,Support Services,Central Services,http://opendatacommunities.org/def/concept/finance/sercop/objective/102,The Oyster Partnership,05020374,06-02-2023,0000186991,1500,0,13wks @1500 upto end of March 2023,261300,HR Recruitment & Assessment
South Lakeland District Council,http://opendatacommunities.org/id/district-council/south-lakeland,28/02/2023,Support Services,Central Services,http://opendatacommunities.org/def/concept/finance/sercop/objective/102,The Oyster Partnership,05020374,13-02-2023,0000187218,1500,0,13wks @1500 upto end of March 2023,261300,HR Recruitment & Assessment
South Lakeland District Council,http://opendatacommunities.org/id/district-council/south-lakeland,28/02/2023,Delivery Commercial Services,Cultural Environmental Regulatory & Planning Services,http://opendatacommunities.org/def/concept/finance/sercop/objective/104,SOUTH LAKES TREE SURGEONS & LANDSCAPES,05342745,22-02-2023,0000187316,1500,0,"Wadhead Hill Woodland, Coast Road,",241210,Horticultural Tree Trimming
South Lakeland District Council,http://opendatacommunities.org/id/district-council/south-lakeland,28/02/2023,Support Services,Central Services,http://opendatacommunities.org/def/concept/finance/sercop/objective/102,The Oyster Partnership,05020374,20-02-2023,0000187390,1500,0,13wks @1500 upto end of March 2023,261300,HR Recruitment & Assessment
South Lakeland District Council,http://opendatacommunities.org/id/district-council/south-lakeland,28/02/2023,Finance,Highways & Transport Services,http://opendatacommunities.org/def/concept/finance/sercop/objective/107,E H BOOTH & CO LTD,,13-02-2023,0000187225,1538.59,0,Booths Kirkby Lonsdale Qtr 3,111200,Catering Food & Beverages
South Lakeland District Council,http://opendatacommunities.org/id/district-council/south-lakeland,28/02/2023,Business Support Community Services,Cultural Environmental Regulatory & Planning Services,http://opendatacommunities.org/def/concept/finance/sercop/objective/104,FUCHS LUBRICANTS (UK) PLC,02412689,15-02-2023,0000187290,1552.8,0,Oils,381100,Vehicle Mgt Fuel
South Lakeland District Council,http://opendatacommunities.org/id/district-council/south-lakeland,28/02/2023,Case Management Account Mgmt,Cultural Environmental Regulatory & Planning Services,http://opendatacommunities.org/def/concept/finance/sercop/objective/104,CONTINENTAL LANDSCAPES LTD,2108452,13-02-2023,0000187064,1561.13,0,Cemetery adjustment 2022/23,391310,Construction Open Spaces Construction
South Lakeland District Council,http://opendatacommunities.org/id/district-council/south-lakeland,28/02/2023,Human Resources,Cultural Environmental Regulatory & Planning Services,http://opendatacommunities.org/def/concept/finance/sercop/objective/104,Haymarket Media Group Ltd,00267189,15-02-2023,0000187307,1594,0,Specialist Level 2 (Strategy) Advert,171114,Education Literature
South Lakeland District Council,http://opendatacommunities.org/id/district-council/south-lakeland,28/02/2023,ICT Group,Central Services,http://opendatacommunities.org/def/concept/finance/sercop/objective/102,GGP Systems Limited,2685491,20-02-2023,0000187402,1595.82,0,GGP5/ NGz,270000,Information Communications Technology
South Lakeland District Council,http://opendatacommunities.org/id/district-council/south-lakeland,28/02/2023,Business Support Community Services,Cultural Environmental Regulatory & Planning Services,http://opendatacommunities.org/def/concept/finance/sercop/objective/104,METCALFE BROS LTD,05899629,15-02-2023,0000187337,1634,0,Sweeper hire - 31/03/23,381200,Vehicle Mgt Heavy Constr Equip Leasing
South Lakeland District Council,http://opendatacommunities.org/id/district-council/south-lakeland,28/02/2023,Case Management People,Housing Services,http://opendatacommunities.org/def/concept/finance/sercop/objective/108,James Andrews Recruitment Solutions,06834852,06-02-2023,0000186983,1668.24,0,Payment for ,261400,HR Temporary & Agency Staff
South Lakeland District Council,http://opendatacommunities.org/id/district-council/south-lakeland,28/02/2023,Case Management Account Mgmt,Central Services,http://opendatacommunities.org/def/concept/finance/sercop/objective/102,ROYAL MAIL GROUP PLC,,06-02-2023,0000186731,1724.25,0,2022-23 Postal Charges a/c 0055114000 &,301200,Mail Services� Postage
South Lakeland District Council,http://opendatacommunities.org/id/district-council/south-lakeland,28/02/2023,Delivery Commercial Services,Environment Regulatory,,Howe Projects Ltd,,06-02-2023,0000186980,1745.98,0,Rayrigg Meadow Changing Places: JCT,109999,Building Not Elsewhere Classified
South Lakeland District Council,http://opendatacommunities.org/id/district-council/south-lakeland,28/02/2023,Case Management People,Central Services,http://opendatacommunities.org/def/concept/finance/sercop/objective/102,CAPITA BUSINESS SERVICES LTD,02299747,20-02-2023,0000187259,1790,0,Council Tax Support Fund software -,261500,HR Training & Conferences
South Lakeland District Council,http://opendatacommunities.org/id/district-council/south-lakeland,28/02/2023,Case Management People,Culture and Related Serv,http://opendatacommunities.org/def/concept/finance/sercop/objective/104,I T SHAW LTD,02971577,15-02-2023,0000187254,1850,0,Digger & op for 1 day,152200,Consultancy Technical & Feasibility
South Lakeland District Council,http://opendatacommunities.org/id/district-council/south-lakeland,28/02/2023,Business Support Community Services,Cultural Environmental Regulatory & Planning Services,http://opendatacommunities.org/def/concept/finance/sercop/objective/104,LANCASTER TRAINING SERVICES LTD,01447612,22-02-2023,0000187484,1890,0,Training,261500,HR Training & Conferences
South Lakeland District Council,http://opendatacommunities.org/id/district-council/south-lakeland,28/02/2023,Case Management Account Mgmt,Cultural Environmental Regulatory & Planning Services,http://opendatacommunities.org/def/concept/finance/sercop/objective/104,CONTINENTAL LANDSCAPES LTD,2108452,13-02-2023,0000187060,1925.77,0,Parks Routine Maintenance,391310,Construction Open Spaces Construction
South Lakeland District Council,http://opendatacommunities.org/id/district-council/south-lakeland,28/02/2023,Case Management People,Housing Services,http://opendatacommunities.org/def/concept/finance/sercop/objective/108,James Andrews Recruitment Solutions,06834852,22-02-2023,0000187396,1945.32,0,Payment for ,261400,HR Temporary & Agency Staff
South Lakeland District Council,http://opendatacommunities.org/id/district-council/south-lakeland,28/02/2023,Case Management Regulatory,Central Services,http://opendatacommunities.org/def/concept/finance/sercop/objective/102,Macdonald & Company Freelance Ltd,03882135,13-02-2023,0000187222,1966.5,0,Contract Worker,261400,HR Temporary & Agency Staff
South Lakeland District Council,http://opendatacommunities.org/id/district-council/south-lakeland,28/02/2023,Support Services,Central Services,http://opendatacommunities.org/def/concept/finance/sercop/objective/102,Browne Jacobson LLP,OC306448,13-02-2023,0000187216,1976.5,0,CONT0885 - SCP KBACT Grant Agreement,281200,Legal Services General Support
South Lakeland District Council,http://opendatacommunities.org/id/district-council/south-lakeland,28/02/2023,Business Support Community Services,Central Services,http://opendatacommunities.org/def/concept/finance/sercop/objective/102,Dawsongroup Truck & Trailer Ltd,03080279,06-02-2023,0000187048,1992.86,0,Lease of 2 x HGV sweepers from date of,381200,Vehicle Mgt Heavy Constr Equip Leasing
South Lakeland District Council,http://opendatacommunities.org/id/district-council/south-lakeland,28/02/2023,Business Support Community Services,Central Services,http://opendatacommunities.org/def/concept/finance/sercop/objective/102,Dawsongroup Truck & Trailer Ltd,03080279,06-02-2023,0000187050,1992.86,0,Lease of 2 x HGV sweepers from date of,381200,Vehicle Mgt Heavy Constr Equip Leasing
South Lakeland District Council,http://opendatacommunities.org/id/district-council/south-lakeland,28/02/2023,Support Services,Central Services,http://opendatacommunities.org/def/concept/finance/sercop/objective/102,GRANTS- MISCELLANEOUS,,13-02-2023,0000187201,2000,0,Locality donationS to support Friends,201700,Financial Services Grants
South Lakeland District Council,http://opendatacommunities.org/id/district-council/south-lakeland,28/02/2023,Support Services,Central Services,http://opendatacommunities.org/def/concept/finance/sercop/objective/102,Cumbria Neighbourhood Watch Association,05854713,20-02-2023,0000187401,2000,0,Locality donation to purchase Video,908000,Public Bodies Council support services
South Lakeland District Council,http://opendatacommunities.org/id/district-council/south-lakeland,28/02/2023,Support Services,Central Services,http://opendatacommunities.org/def/concept/finance/sercop/objective/102,AKUMEN BUSINESS SOLUTIONS,,27-02-2023,0000187599,2006,0,ref Jas Kumari Priority 1 level 2,280000,Legal Services
South Lakeland District Council,http://opendatacommunities.org/id/district-council/south-lakeland,28/02/2023,ICT Group,Central Services,http://opendatacommunities.org/def/concept/finance/sercop/objective/102,IMPROVEMENT & DEVELOPMENT AGENCY,03675577,20-02-2023,0000187435,2021,0,Subscription renewal for Inform Plus,202100,Financial Services Subscriptions
South Lakeland District Council,http://opendatacommunities.org/id/district-council/south-lakeland,28/02/2023,Human Resources,Central Services,http://opendatacommunities.org/def/concept/finance/sercop/objective/102,MIDLAND SOFTWARE LTD,01852206,01-02-2023,0000186907,2028,0,SIN170489,271600,ICT Software Customised & Bespoke
South Lakeland District Council,http://opendatacommunities.org/id/district-council/south-lakeland,28/02/2023,Support Services,Central Services,http://opendatacommunities.org/def/concept/finance/sercop/objective/102,AKUMEN BUSINESS SOLUTIONS,,27-02-2023,0000187598,2040,0,ref Jas Kumari Priority 1 level 2,280000,Legal Services
South Lakeland District Council,http://opendatacommunities.org/id/district-council/south-lakeland,28/02/2023,Support Services,Central Services,http://opendatacommunities.org/def/concept/finance/sercop/objective/102,CFH Docmail Ltd,01716891,20-02-2023,0000187100,2041.51,0,"Ad hoc printing throughout the year,",300000,Mail Services
South Lakeland District Council,http://opendatacommunities.org/id/district-council/south-lakeland,28/02/2023,Case Management Regulatory,Central Services,http://opendatacommunities.org/def/concept/finance/sercop/objective/102,CUMBRIA COUNTY COUNCIL,,13-02-2023,0000187169,2109.1,0,LAND CHARGE SEARCH ENQUIRIES HIGHWAYS,908000,Public Bodies Council support services
South Lakeland District Council,http://opendatacommunities.org/id/district-council/south-lakeland,28/02/2023,Delivery Commercial Services,Highways & Transport Services,http://opendatacommunities.org/def/concept/finance/sercop/objective/107,SOUTH LAKES TREE SURGEONS & LANDSCAPES,05342745,20-02-2023,0000187371,2160,0,Rydal Road Car Park:-,241210,Horticultural Tree Trimming
South Lakeland District Council,http://opendatacommunities.org/id/district-council/south-lakeland,28/02/2023,Business Support Community Services,Cultural Environmental Regulatory & Planning Services,http://opendatacommunities.org/def/concept/finance/sercop/objective/104,PENNINGTONS (KENDAL) LIMITED,00434649,13-02-2023,0000187181,2200,0,Use of Boundary Bank,182013,Environment Waste Mgt Waste Collection
South Lakeland District Council,http://opendatacommunities.org/id/district-council/south-lakeland,28/02/2023,Case Management Account Mgmt,Cultural Environmental Regulatory & Planning Services,http://opendatacommunities.org/def/concept/finance/sercop/objective/104,CONTINENTAL LANDSCAPES LTD,2108452,13-02-2023,0000187060,2222.05,0,Parks Routine Maintenance,391310,Construction Open Spaces Construction
South Lakeland District Council,http://opendatacommunities.org/id/district-council/south-lakeland,28/02/2023,Delivery Commercial Services,Culture and Related Serv,http://opendatacommunities.org/def/concept/finance/sercop/objective/104,Nixon Hire Ltd,00921639,08-02-2023,0000187164,2320,0,Used cut down 10ft x 8ft storage,109999,Building Not Elsewhere Classified
South Lakeland District Council,http://opendatacommunities.org/id/district-council/south-lakeland,28/02/2023,Human Resources,Central Services,http://opendatacommunities.org/def/concept/finance/sercop/objective/102,IT Online Learning,06311471,20-02-2023,0000187430,2437.5,0,Change management course x 4,261500,HR Training & Conferences
South Lakeland District Council,http://opendatacommunities.org/id/district-council/south-lakeland,28/02/2023,Case Management Account Mgmt,Cultural Environmental Regulatory & Planning Services,http://opendatacommunities.org/def/concept/finance/sercop/objective/104,CONTINENTAL LANDSCAPES LTD,2108452,13-02-2023,0000187061,2462.58,0,Disposal of waste to Kendal Fell 2022/23,391310,Construction Open Spaces Construction
South Lakeland District Council,http://opendatacommunities.org/id/district-council/south-lakeland,28/02/2023,Westmorland Centre Parking Office,Highways & Transport Services,http://opendatacommunities.org/def/concept/finance/sercop/objective/107,CAPITA BUSINESS SERVICES LTD (NCR),,01-02-2023,0000187244,2513,0,PSP charges,261500,HR Training & Conferences
South Lakeland District Council,http://opendatacommunities.org/id/district-council/south-lakeland,28/02/2023,Case Management People,Culture and Related Serv,http://opendatacommunities.org/def/concept/finance/sercop/objective/104,I T SHAW LTD,02971577,15-02-2023,0000187311,2555,0,To widen path. Remove stone pile. Extra,152200,Consultancy Technical & Feasibility
South Lakeland District Council,http://opendatacommunities.org/id/district-council/south-lakeland,28/02/2023,Westmorland Centre Parking Office,Highways & Transport Services,http://opendatacommunities.org/def/concept/finance/sercop/objective/107,Worldpay (UK) Limited (NCR),,01-02-2023,0000187243,2617.16,0,Credit card comission,201200,Financial Services Banking
South Lakeland District Council,http://opendatacommunities.org/id/district-council/south-lakeland,28/02/2023,Customer Services,Cultural Environmental Regulatory & Planning Services,http://opendatacommunities.org/def/concept/finance/sercop/objective/104,MILNTHORPE KENNELS & CATTERY,08932302,27-02-2023,0000187567,2791.67,0,Stray Dog kennelling fees 2022/23,181500,Environment Animal Services
South Lakeland District Council,http://opendatacommunities.org/id/district-council/south-lakeland,28/02/2023,Finance,Central Services,http://opendatacommunities.org/def/concept/finance/sercop/objective/102,Pay360 Limited,,20-02-2023,0000187406,2795,0,Replacement for order 46708 re remember,271600,ICT Software Customised & Bespoke
South Lakeland District Council,http://opendatacommunities.org/id/district-council/south-lakeland,28/02/2023,Human Resources,Central Services,http://opendatacommunities.org/def/concept/finance/sercop/objective/102,HFX LIMITED,08137794,13-02-2023,0000187070,2853.83,0,HFX Etarmis Maintenance Support,261200,HR Professional & Advisory Services
South Lakeland District Council,http://opendatacommunities.org/id/district-council/south-lakeland,28/02/2023,Support Services,Culture and Related Serv,http://opendatacommunities.org/def/concept/finance/sercop/objective/104,Browne Jacobson LLP,OC306448,08-02-2023,0000187179,2919,0,Lancaster Town Path Grant Agreement -,281200,Legal Services General Support
South Lakeland District Council,http://opendatacommunities.org/id/district-council/south-lakeland,28/02/2023,Case Management Account Mgmt,SLDC as Agent,,PS BUSINESS MATTERS,08147185,22-02-2023,0000187135,3000,0,SLDC contribution to Kendal Futures,151900,Consultancy Management
South Lakeland District Council,http://opendatacommunities.org/id/district-council/south-lakeland,28/02/2023,Case Management People,Housing,http://opendatacommunities.org/def/concept/finance/sercop/objective/108,Trebbi Continuum Ltd,,08-02-2023,0000187158,3000,0,Viability Assessment,150000,Consultancy
South Lakeland District Council,http://opendatacommunities.org/id/district-council/south-lakeland,28/02/2023,Case Management People,Housing,http://opendatacommunities.org/def/concept/finance/sercop/objective/108,Trebbi Continuum Ltd,,08-02-2023,0000187160,3000,0,Viability Assessment,150000,Consultancy
South Lakeland District Council,http://opendatacommunities.org/id/district-council/south-lakeland,28/02/2023,Case Management Account Mgmt,SLDC as Agent,,PAY BY PHONE (PAYPOINT),,13-02-2023,0000187210,3139.08,0,Pay by Phones fees for 1 April to 31,351400,Street & Traffic Traffic Control
South Lakeland District Council,http://opendatacommunities.org/id/district-council/south-lakeland,28/02/2023,Case Management Regulatory,Central Services,http://opendatacommunities.org/def/concept/finance/sercop/objective/102,CUMBRIA COUNTY COUNCIL,,13-02-2023,0000187170,3177.4,0,LAND CHARGE SEARCH ENQUIRIES HIGHWAYS,908000,Public Bodies Council support services
South Lakeland District Council,http://opendatacommunities.org/id/district-council/south-lakeland,28/02/2023,Support Services,Planning and Development,,BEVAN BRITTAN,OC309219,27-02-2023,0000187560,3178,0,PLAN0213 Deed of Variation - Land at,280000,Legal Services
South Lakeland District Council,http://opendatacommunities.org/id/district-council/south-lakeland,28/02/2023,Support Services,Central Services,http://opendatacommunities.org/def/concept/finance/sercop/objective/102,TIAA Ltd,04546319,20-02-2023,0000187420,3400,0,22/23 Internal Audit Service TIAA LTD,201100,Financial Services Audit
South Lakeland District Council,http://opendatacommunities.org/id/district-council/south-lakeland,28/02/2023,Finance,Central Services,http://opendatacommunities.org/def/concept/finance/sercop/objective/102,BA Procurement Limited,12791832,06-02-2023,0000187079,3500,0,Procurement Services provided by,280000,Legal Services
South Lakeland District Council,http://opendatacommunities.org/id/district-council/south-lakeland,28/02/2023,Delivery Commercial Services,Cultural Environmental Regulatory & Planning Services,http://opendatacommunities.org/def/concept/finance/sercop/objective/104,SOUTH LAKES TREE SURGEONS & LANDSCAPES,05342745,20-02-2023,0000187370,3680,0,Rothay Park - January 2023,241210,Horticultural Tree Trimming
South Lakeland District Council,http://opendatacommunities.org/id/district-council/south-lakeland,28/02/2023,Case Management Account Mgmt,Central Services,http://opendatacommunities.org/def/concept/finance/sercop/objective/102,ROYAL MAIL GROUP PLC,,06-02-2023,0000186733,3954.72,0,2022-23 Royal Mail Postal Charges a/c,301200,Mail Services� Postage
South Lakeland District Council,http://opendatacommunities.org/id/district-council/south-lakeland,28/02/2023,Case Management People,Housing Services,http://opendatacommunities.org/def/concept/finance/sercop/objective/108,HOME GROUP LTD,IP22981R,20-02-2023,0000187355,3958.5,0,Payment for Crag View,250000,Housing
South Lakeland District Council,http://opendatacommunities.org/id/district-council/south-lakeland,28/02/2023,Case Management People,Housing Services,http://opendatacommunities.org/def/concept/finance/sercop/objective/108,SOUTH LAKES HOUSING,IP031419,27-02-2023,0000187606,4200,0,Town View Fields - Management Fee,191700,Facilities Property Management
South Lakeland District Council,http://opendatacommunities.org/id/district-council/south-lakeland,28/02/2023,Case Management Regulatory,Housing Services,http://opendatacommunities.org/def/concept/finance/sercop/objective/108,CIVICA UK LTD,01628868,20-02-2023,0000187421,4309.71,0,Licence Support and Maintenance,271600,ICT Software Customised & Bespoke
South Lakeland District Council,http://opendatacommunities.org/id/district-council/south-lakeland,28/02/2023,ICT Group,Central Services,http://opendatacommunities.org/def/concept/finance/sercop/objective/102,GGP Systems Limited,2685491,20-02-2023,0000187402,4372.5,0,GGP5/ NGz,270000,Information Communications Technology
South Lakeland District Council,http://opendatacommunities.org/id/district-council/south-lakeland,28/02/2023,Case Management Account Mgmt,Cultural Environmental Regulatory & Planning Services,http://opendatacommunities.org/def/concept/finance/sercop/objective/104,CONTINENTAL LANDSCAPES LTD,2108452,22-02-2023,0000186324,4477.38,0,Grave digging 2022/23,391310,Construction Open Spaces Construction
South Lakeland District Council,http://opendatacommunities.org/id/district-council/south-lakeland,28/02/2023,Case Management Account Mgmt,Cultural Environmental Regulatory & Planning Services,http://opendatacommunities.org/def/concept/finance/sercop/objective/104,CONTINENTAL LANDSCAPES LTD,2108452,13-02-2023,0000187057,4477.38,0,Grave digging 2022/23,391310,Construction Open Spaces Construction
South Lakeland District Council,http://opendatacommunities.org/id/district-council/south-lakeland,28/02/2023,Support Services,Cultural Environmental Regulatory & Planning Services,http://opendatacommunities.org/def/concept/finance/sercop/objective/104,Browne Jacobson LLP,OC306448,06-02-2023,0000186977,4598.35,0,Shared Prosperity fund subsidy advice,281200,Legal Services General Support
South Lakeland District Council,http://opendatacommunities.org/id/district-council/south-lakeland,28/02/2023,Support Services,Central Services,http://opendatacommunities.org/def/concept/finance/sercop/objective/102,TIAA Ltd,04546319,08-02-2023,0000187037,5100,0,22/23 Internal Audit Service TIAA LTD,201100,Financial Services Audit
South Lakeland District Council,http://opendatacommunities.org/id/district-council/south-lakeland,28/02/2023,Case Management Account Mgmt,Central Services,http://opendatacommunities.org/def/concept/finance/sercop/objective/102,CAPITA BUSINESS SERVICES LTD (NCR),,01-02-2023,0000187235,5355.11,0,2022/23 Internet payment/bank charges,261500,HR Training & Conferences
South Lakeland District Council,http://opendatacommunities.org/id/district-council/south-lakeland,28/02/2023,Human Resources,Central Services,http://opendatacommunities.org/def/concept/finance/sercop/objective/102,MIDLAND SOFTWARE LTD,01852206,01-02-2023,0000186906,5372.15,0,SIN170488,271600,ICT Software Customised & Bespoke
South Lakeland District Council,http://opendatacommunities.org/id/district-council/south-lakeland,28/02/2023,Case Management,Central Services,http://opendatacommunities.org/def/concept/finance/sercop/objective/102,PSL Print Management Ltd,,15-02-2023,0000187183,5431.52,0,Postage costs,191600,Facilities Printing
South Lakeland District Council,http://opendatacommunities.org/id/district-council/south-lakeland,28/02/2023,Case Management People,Culture and Related Serv,http://opendatacommunities.org/def/concept/finance/sercop/objective/104,I T SHAW LTD,02971577,15-02-2023,0000187255,5465,0,� Turnover of 9 no allotments as per,152200,Consultancy Technical & Feasibility
South Lakeland District Council,http://opendatacommunities.org/id/district-council/south-lakeland,28/02/2023,Case Management Regulatory,Housing Services,http://opendatacommunities.org/def/concept/finance/sercop/objective/108,CIVICA UK LTD,01628868,20-02-2023,0000187421,5491.02,0,Licence Support and Maintenance,271600,ICT Software Customised & Bespoke
South Lakeland District Council,http://opendatacommunities.org/id/district-council/south-lakeland,28/02/2023,Case Management,Cultural Environmental Regulatory & Planning Services,http://opendatacommunities.org/def/concept/finance/sercop/objective/104,Tullie House Museum and Art Gallery,07710513,06-02-2023,0000186948,5615,0,Cumbria Biodiversity Evidence Base and,181400,Environment Monitoring
South Lakeland District Council,http://opendatacommunities.org/id/district-council/south-lakeland,28/02/2023,Case Management People,Housing Services,http://opendatacommunities.org/def/concept/finance/sercop/objective/108,Homes For Ulverston CLT Ltd,,06-02-2023,0000187053,5819,0,Capacity Grant Sefton House,250000,Housing
South Lakeland District Council,http://opendatacommunities.org/id/district-council/south-lakeland,28/02/2023,Case Management Account Mgmt,Central Services,http://opendatacommunities.org/def/concept/finance/sercop/objective/102,MERITEC LTD,03224622,08-02-2023,0000186746,6000,0,Quote QU - 0267,391200,Construction Engineering
South Lakeland District Council,http://opendatacommunities.org/id/district-council/south-lakeland,28/02/2023,Business Support Community Services,Cultural Environmental Regulatory & Planning Services,http://opendatacommunities.org/def/concept/finance/sercop/objective/104,ALLSTAR BUSINESS SOLUTIONS LTD (NCR),2631112,01-02-2023,0000187041,6009.67,0,Fuel to 31/1,381600,Vehicle Mgt Leasing
South Lakeland District Council,http://opendatacommunities.org/id/district-council/south-lakeland,28/02/2023,Case Management Regulatory,Cultural Environmental Regulatory & Planning Services,http://opendatacommunities.org/def/concept/finance/sercop/objective/104,UNITED UTILITIES WATER PLC,2366678,27-02-2023,0000187594,6375.91,0,Private Water Analysis,371300,Utilities Water
South Lakeland District Council,http://opendatacommunities.org/id/district-council/south-lakeland,28/02/2023,Delivery Commercial Services,Central Services,http://opendatacommunities.org/def/concept/finance/sercop/objective/102,Walton Goodland Limited,05228095,22-02-2023,0000187510,6500,0,Asset Valuation reports for:- South,109999,Building Not Elsewhere Classified
South Lakeland District Council,http://opendatacommunities.org/id/district-council/south-lakeland,28/02/2023,Case Management Regulatory,Central Services,http://opendatacommunities.org/def/concept/finance/sercop/objective/102,CIVICA UK LTD,01628868,06-02-2023,0000186978,6525.75,0,APP Upgrade from v8.5 to V8.9,271600,ICT Software Customised & Bespoke
South Lakeland District Council,http://opendatacommunities.org/id/district-council/south-lakeland,28/02/2023,Support Services,Central Services,http://opendatacommunities.org/def/concept/finance/sercop/objective/102,TIAA Ltd,04546319,20-02-2023,0000187419,6800,0,22/23 Internal Audit Service TIAA LTD,201100,Financial Services Audit
South Lakeland District Council,http://opendatacommunities.org/id/district-council/south-lakeland,28/02/2023,Case Management Account Mgmt,Central Services,http://opendatacommunities.org/def/concept/finance/sercop/objective/102,MERITEC LTD,03224622,08-02-2023,0000186747,9157.5,0,Quote QU - 0267,391200,Construction Engineering
South Lakeland District Council,http://opendatacommunities.org/id/district-council/south-lakeland,28/02/2023,Case Management People,Cultural Environmental Regulatory & Planning Services,http://opendatacommunities.org/def/concept/finance/sercop/objective/104,SOUTH LAKES HOUSING,IP031419,27-02-2023,0000187606,9234.5,0,Town View Fields - Management Fee,191700,Facilities Property Management
South Lakeland District Council,http://opendatacommunities.org/id/district-council/south-lakeland,28/02/2023,Case Management People,Cultural Environmental Regulatory & Planning Services,http://opendatacommunities.org/def/concept/finance/sercop/objective/104,R G PARKINS & PARTNERS LTD,04107150,06-02-2023,0000187001,9845,0,Project support for the GSK land,152200,Consultancy Technical & Feasibility
South Lakeland District Council,http://opendatacommunities.org/id/district-council/south-lakeland,28/02/2023,Delivery Commercial Services,Culture and Related Serv,http://opendatacommunities.org/def/concept/finance/sercop/objective/104,NHS Foundation Trust,,15-02-2023,0000187315,10000,0,Repayment of Grant funding in respect,109999,Building Not Elsewhere Classified
South Lakeland District Council,http://opendatacommunities.org/id/district-council/south-lakeland,28/02/2023,Case Management Account Mgmt,Cultural Environmental Regulatory & Planning Services,http://opendatacommunities.org/def/concept/finance/sercop/objective/104,Lakes Arts Festivals Ltd,08320981,20-02-2023,0000187346,10000,0,Strategic Cultural Partner funding,291000,Arts & Leisure Services Events
South Lakeland District Council,http://opendatacommunities.org/id/district-council/south-lakeland,28/02/2023,Human Resources,Central Services,http://opendatacommunities.org/def/concept/finance/sercop/objective/102,Reach Printing Services Limited,2064914,06-02-2023,0000187104,10815.62,0,Printing 28th February 2023 for the,191600,Facilities Printing
South Lakeland District Council,http://opendatacommunities.org/id/district-council/south-lakeland,28/02/2023,Business Support Community Services,Cultural Environmental Regulatory & Planning Services,http://opendatacommunities.org/def/concept/finance/sercop/objective/104,Initial,01298292,15-02-2023,0000187282,11187.12,0,Clinical waste collections 2022/23,131011,Cleaning & Janitorial Cleaning Materials
South Lakeland District Council,http://opendatacommunities.org/id/district-council/south-lakeland,28/02/2023,Case Management Account Mgmt,Cultural Environmental Regulatory & Planning Services,http://opendatacommunities.org/def/concept/finance/sercop/objective/104,CONTINENTAL LANDSCAPES LTD,2108452,13-02-2023,0000187060,11850.92,0,Parks Routine Maintenance,391310,Construction Open Spaces Construction
South Lakeland District Council,http://opendatacommunities.org/id/district-council/south-lakeland,28/02/2023,Delivery Commercial Services,Culture and Related Serv,http://opendatacommunities.org/def/concept/finance/sercop/objective/104,R Developments Ltd T/A Rosslee,04459448,13-02-2023,0000187187,12786.72,0,Abbot Hall Refurbishment - Retention,100000,Building Construction materials
South Lakeland District Council,http://opendatacommunities.org/id/district-council/south-lakeland,28/02/2023,Delivery Commercial Services,Culture and Related Serv,http://opendatacommunities.org/def/concept/finance/sercop/objective/104,Bloom Procurement Services Ltd,,08-02-2023,0000187173,13044.38,0,Grange Lido - (IBI),151900,Consultancy Management
South Lakeland District Council,http://opendatacommunities.org/id/district-council/south-lakeland,28/02/2023,Support Services,Central Services,http://opendatacommunities.org/def/concept/finance/sercop/objective/102,GRANT THORNTON UK LLP,OC307742,20-02-2023,0000187365,13062,0,2022/23 External Audit Fees  PSAA Main,201000,Financial Services Accountancy
South Lakeland District Council,http://opendatacommunities.org/id/district-council/south-lakeland,28/02/2023,Business Support Community Services,Central Services,http://opendatacommunities.org/def/concept/finance/sercop/objective/102,Dawsongroup Truck & Trailer Ltd,03080279,06-02-2023,0000187049,16490.2,0,Lease of 2 x HGV sweepers from date of,381200,Vehicle Mgt Heavy Constr Equip Leasing
South Lakeland District Council,http://opendatacommunities.org/id/district-council/south-lakeland,28/02/2023,Business Support Community Services,Central Services,http://opendatacommunities.org/def/concept/finance/sercop/objective/102,Dawsongroup Truck & Trailer Ltd,03080279,15-02-2023,0000187287,16490.2,0,Lease of 2 x HGV sweepers from date of,381200,Vehicle Mgt Heavy Constr Equip Leasing
South Lakeland District Council,http://opendatacommunities.org/id/district-council/south-lakeland,28/02/2023,Business Support Community Services,Central Services,http://opendatacommunities.org/def/concept/finance/sercop/objective/102,STRAIGHT MANUFACTURING Ltd,01618165,22-02-2023,0000187483,16513.2,0,Recycling box & lid deliveries in,182011,Environment Waste Management Consumables
South Lakeland District Council,http://opendatacommunities.org/id/district-council/south-lakeland,28/02/2023,Business Support Community Services,Cultural Environmental Regulatory & Planning Services,http://opendatacommunities.org/def/concept/finance/sercop/objective/104,ALLSTAR BUSINESS SOLUTIONS LTD (NCR),2631112,01-02-2023,0000187041,16619.4,0,Fuel to 31/1,381600,Vehicle Mgt Leasing
South Lakeland District Council,http://opendatacommunities.org/id/district-council/south-lakeland,28/02/2023,Case Management Regulatory,Central Services,http://opendatacommunities.org/def/concept/finance/sercop/objective/102,CIVICA UK LTD,01628868,20-02-2023,0000187421,18201.75,0,Licence Support and Maintenance,271600,ICT Software Customised & Bespoke
South Lakeland District Council,http://opendatacommunities.org/id/district-council/south-lakeland,28/02/2023,Case Management Account Mgmt,Cultural Environmental Regulatory & Planning Services,http://opendatacommunities.org/def/concept/finance/sercop/objective/104,Hatch Associates Ltd,,15-02-2023,0000186917,23408,0,"UKSPF Year 1 appraisal work for SLDC,",150000,Consultancy
South Lakeland District Council,http://opendatacommunities.org/id/district-council/south-lakeland,28/02/2023,Case Management People,SLDC as Agent,,Staveley Village Association,,20-02-2023,0000187353,25500,0,Pocket Park Grant to be paid for the,201700,Financial Services Grants
South Lakeland District Council,http://opendatacommunities.org/id/district-council/south-lakeland,28/02/2023,ICT Group,Central Services,http://opendatacommunities.org/def/concept/finance/sercop/objective/102,NEC Software Solutions UK Ltd,,20-02-2023,0000185453,30640,0,Info@Work Licences and support 3 year,271600,ICT Software Customised & Bespoke
South Lakeland District Council,http://opendatacommunities.org/id/district-council/south-lakeland,28/02/2023,Case Management Account Mgmt,Cultural Environmental Regulatory & Planning Services,http://opendatacommunities.org/def/concept/finance/sercop/objective/104,Kendal Futures CIC,,20-02-2023,0000187414,40000,0,UKSPF feasibility study grant payment -,150000,Consultancy
South Lakeland District Council,http://opendatacommunities.org/id/district-council/south-lakeland,28/02/2023,Business Support Community Services,Cultural Environmental Regulatory & Planning Services,http://opendatacommunities.org/def/concept/finance/sercop/objective/104,CUMBRIA COUNTY COUNCIL,,15-02-2023,0000187319,42603.2,0,Tipping charges,908000,Public Bodies Council support services
South Lakeland District Council,http://opendatacommunities.org/id/district-council/south-lakeland,28/02/2023,Case Management Account Mgmt,Cultural Environmental Regulatory & Planning Services,http://opendatacommunities.org/def/concept/finance/sercop/objective/104,CONTINENTAL LANDSCAPES LTD,2108452,13-02-2023,0000187060,56440.01,0,Parks Routine Maintenance,391310,Construction Open Spaces Construction
South Lakeland District Council,http://opendatacommunities.org/id/district-council/south-lakeland,28/02/2023,Case Management Account Mgmt,Cultural Environmental Regulatory & Planning Services,http://opendatacommunities.org/def/concept/finance/sercop/objective/104,BREWERY ARTS CENTRE,,20-02-2023,0000187349,67500,0,Strategic Cultural Partner funding,291000,Arts & Leisure Services Events
South Lakeland District Council,http://opendatacommunities.org/id/district-council/south-lakeland,28/02/2023,Case Management Account Mgmt,Cultural Environmental Regulatory & Planning Services,http://opendatacommunities.org/def/concept/finance/sercop/objective/104,Cumbria Action for Sustainability,06492907,06-02-2023,0000186963,92294,0,UKSPF Year 1 project - Cold to Cosy,201700,Financial Services Grants
